Department Family,Entity,Date,Expense Type,Expense Area,Supplier,Transaction Number,Amount,Description
Ministry of Justice,LEGAL AID AGENCY,29/06/2015,221000-Property Rent and Rates,VA396-Property Costs,CAPITA PROPERTY & INFRASTRUCTURE LTD,2001096,"4,119.75 ",Property Costs
Ministry of Justice,LEGAL AID AGENCY,29/06/2015,221000-Property Rent and Rates,VA396-Property Costs,JONES LANG LASALLE LTD,2001099,"4,362.50 ",Property Costs
Ministry of Justice,LEGAL AID AGENCY,29/06/2015,221000-Property Rent and Rates,VA396-Property Costs,JONES LANG LASALLE LTD,2001099,"21,812.50 ",Property Costs
Ministry of Justice,LEGAL AID AGENCY,29/06/2015,221000-Property Rent and Rates,VA396-Property Costs,HO2 PLC,2001098,"14,655.00 ",Property Costs
Ministry of Justice,LEGAL AID AGENCY,29/06/2015,221000-Property Rent and Rates,VA396-Property Costs,JONES LANG LASALLE LTD,2001099,"15,673.35 ",Property Costs
Ministry of Justice,LEGAL AID AGENCY,24/06/2015,221000-Property Rent and Rates,VA396-Property Costs,CBRE LTD,2001014,"11,974.40 ",Property Costs
Ministry of Justice,LEGAL AID AGENCY,24/06/2015,221000-Property Rent and Rates,VA396-Property Costs,CBRE LTD,2001014,"59,872.00 ",Property Costs
Ministry of Justice,LEGAL AID AGENCY,29/06/2015,221000-Property Rent and Rates,VA396-Property Costs,DTZ DEBENHAM TIE LEUNG,2001097,"24,000.00 ",Property Costs
Ministry of Justice,LEGAL AID AGENCY,29/06/2015,221000-Property Rent and Rates,VA396-Property Costs,CAPITA PROPERTY & INFRASTRUCTURE LTD,2001096,"20,598.75 ",Property Costs
Ministry of Justice,LEGAL AID AGENCY,29/06/2015,221000-Property Rent and Rates,VA396-Property Costs,THE PALMER GVA (JARROW) LLP,2001102,"17,033.20 ",Property Costs
Ministry of Justice,LEGAL AID AGENCY,29/06/2015,221000-Property Rent and Rates,VA396-Property Costs,HO2 PLC,2001098,"73,275.00 ",Property Costs
Ministry of Justice,LEGAL AID AGENCY,24/06/2015,221000-Property Rent and Rates,VA396-Property Costs,LONDON & SCOTTISH PROPERTY MANAGEMENT LTD,2001057,"15,232.73 ",Property Costs
Ministry of Justice,LEGAL AID AGENCY,24/06/2015,221000-Property Rent and Rates,VA396-Property Costs,LONDON & SCOTTISH PROPERTY MANAGEMENT LTD,2001057,"48,000.00 ",Property Costs
Ministry of Justice,LEGAL AID AGENCY,29/06/2015,221000-Property Rent and Rates,VA396-Property Costs,THE PALMER GVA (JARROW) LLP,2001102,"85,166.00 ",Property Costs
Ministry of Justice,LEGAL AID AGENCY,24/06/2015,221000-Property Rent and Rates,VA396-Property Costs,JONES LANG LASALLE LTD,2001050,"21,887.50 ",Property Costs
Ministry of Justice,LEGAL AID AGENCY,29/06/2015,221000-Property Rent and Rates,VA396-Property Costs,UNEX INVESTMENT TRUST LTD,2001103,"9,720.10 ",Property Costs
Ministry of Justice,LEGAL AID AGENCY,29/06/2015,221000-Property Rent and Rates,VA396-Property Costs,JONES LANG LASALLE LTD,2001099,"78,366.75 ",Property Costs
Ministry of Justice,LEGAL AID AGENCY,24/06/2015,221000-Property Rent and Rates,VA396-Property Costs,JONES LANG LASALLE LTD,2001050,"4,377.50 ",Property Costs
Ministry of Justice,LEGAL AID AGENCY,29/06/2015,221000-Property Rent and Rates,VA396-Property Costs,UNEX INVESTMENT TRUST LTD,2001103,"48,600.50 ",Property Costs
Ministry of Justice,LEGAL AID AGENCY,29/06/2015,222002-Other Property Costs,VA396-Property Costs,JONES LANG LASALLE LTD,2001099,"52,181.64 ",Property Costs
Ministry of Justice,LEGAL AID AGENCY,24/06/2015,222002-Other Property Costs,VA396-Property Costs,CBRE LTD,2001014,"7,797.15 ",Property Costs
Ministry of Justice,LEGAL AID AGENCY,29/06/2015,222002-Other Property Costs,VA396-Property Costs,JONES LANG LASALLE LTD,2001099,"10,436.33 ",Property Costs
Ministry of Justice,LEGAL AID AGENCY,29/06/2015,222002-Other Property Costs,VA396-Property Costs,HO2 PLC,2001098,"31,000.00 ",Property Costs
Ministry of Justice,LEGAL AID AGENCY,24/06/2015,222002-Other Property Costs,VA396-Property Costs,CBRE LTD,2001014,"1,559.43 ",Property Costs
Ministry of Justice,LEGAL AID AGENCY,29/06/2015,222002-Other Property Costs,VA396-Property Costs,HO2 PLC,2001098,"6,200.00 ",Property Costs
Ministry of Justice,LEGAL AID AGENCY,29/06/2015,222002-Other Property Costs,VA396-Property Costs,DTZ DEBENHAM TIE LEUNG,2001097,"62,500.00 ",Property Costs
Ministry of Justice,LEGAL AID AGENCY,24/06/2015,222002-Other Property Costs,VA396-Property Costs,LONDON & SCOTTISH PROPERTY MANAGEMENT LTD,2001057,"28,163.67 ",Property Costs
Ministry of Justice,LEGAL AID AGENCY,05/06/2015,223001-Printing Postage and Office expenditure,VA293-Finance Directorate,DX NETWORK SERVICES LTD,2000724,"634,888.76 ",DX Subscription 01 Apr- 30 Sept 2015
Ministry of Justice,LEGAL AID AGENCY,05-Jun-15 ,223001-Printing Postage and Office expenditure,VA293-Finance Directorate,DX NETWORK SERVICES LTD,2000724,-0.02,Printing Postage and Office expenditure
Ministry of Justice,LEGAL AID AGENCY,03-Jun-15 ,265000-IT & Telecommunications,VA294-ISD,ORACLE CORPORATION U K LTD,2000686,"22,325.53",Programme Technical Support Services provided under support service no. 5842309 Period : 6 April 15 to 5 April 16
Ministry of Justice,LEGAL AID AGENCY,03-Jun-15 ,265000-IT & Telecommunications,VA294-ISD,ORACLE CORPORATION U K LTD,2000686,"607,863.00",Programme Technical Support Services provided under support service no. 3878015 Period : 6 April 15 to 5 April 16
Ministry of Justice,LEGAL AID AGENCY,10-Jun-15 ,265000-IT & Telecommunications,"VA393-Operations, Civil",NORTHGATE INFORMATION SOLUTIONS UK LTD,2000809,"28,549.25","Managed Service per month, Network Connection per month & EDRM Software per month - April 15 to March 16 contract number CAT2055 COM-09-503"
Ministry of Justice,LEGAL AID AGENCY,24-Jun-15 ,223000-Other Expenditure,VA395-National Courts Team,ROSSENDALES LTD,2001075,"67,462.25",Collections (Service Delivery) costs for Crown Courts Means Testing covering April 2015 to March 2016
Ministry of Justice,LEGAL AID AGENCY,10-Jun-15 ,223000-Other Expenditure,VA395-National Courts Team,ROSSENDALES LTD,2000825,"5,466.46",Collections (Service Delivery) costs for Crown Courts Means Testing covering April 2015 to March 2016
Ministry of Justice,LEGAL AID AGENCY,10-Jun-15 ,223000-Other Expenditure,VA395-National Courts Team,ROSSENDALES LTD,2000825,"84,746.88",Collections (Service Delivery) costs for Crown Courts Means Testing covering April 2015 to March 2016
Ministry of Justice,LEGAL AID AGENCY,24-Jun-15 ,223000-Other Expenditure,VA395-National Courts Team,ROSSENDALES LTD,2001075,"50,400.00",Enforcement costs for Crown Courts Means Testing covering April 2015 to March 2016
Ministry of Justice,LEGAL AID AGENCY,24-Jun-15 ,223000-Other Expenditure,VA395-National Courts Team,ROSSENDALES LTD,2001075,"69,634.60",Enforcement costs for Crown Courts Means Testing covering April 2015 to March 2016
Ministry of Justice,LEGAL AID AGENCY,10-Jun-15 ,223000-Other Expenditure,VA395-National Courts Team,ROSSENDALES LTD,2000825,"26,170.00",Enforcement costs for Crown Courts Means Testing covering April 2015 to March 2016
Ministry of Justice,LEGAL AID AGENCY,18-Jun-15 ,223000-Other Expenditure,VA094-Head of Legal,GOVERNMENT LEGAL DEPARTMENT,10006,"182,000.00",LAA Legal Advisory Services provided by Government Legal Department
Ministry of Justice,LEGAL AID AGENCY,11-Jun-15 ,265000-IT & Telecommunications,VA617-Business Recovery,BT PLC,2000861,"29,573.29",IT & Telecommunications
Ministry of Justice,LEGAL AID AGENCY,11-Jun-15 ,265000-IT & Telecommunications,VA617-Business Recovery,BT PLC,2000861,"5,914.65",IT & Telecommunications
Ministry of Justice,LEGAL AID AGENCY,11-Jun-15 ,224000-Staff travel and other,VA392-High Cost Cases,BINDMANS LLP#VA31200001,2000863,"29,576.25",Legal Aid Agency-Special Cases Unit - Professional Body Members-Default-Default
Ministry of Justice,LEGAL AID AGENCY,03-Jun-15 ,224000-Staff travel and other,VA293-Finance Directorate,REDFERN TRAVEL LTD,2000696,84.20,Staff travel and other
Ministry of Justice,LEGAL AID AGENCY,03-Jun-15 ,224000-Staff travel and other,VA293-Finance Directorate,REDFERN TRAVEL LTD,2000696,-2.92,Staff travel and other
Ministry of Justice,LEGAL AID AGENCY,03-Jun-15 ,224000-Staff travel and other,VA293-Finance Directorate,REDFERN TRAVEL LTD,2000696,420.98,LAA Blanket Travel Costs 1st March 2015 to 31st May 2015
Ministry of Justice,LEGAL AID AGENCY,03-Jun-15 ,224000-Staff travel and other,VA293-Finance Directorate,REDFERN TRAVEL LTD,2000696,"114,019.79",LAA Blanket Travel Costs 1st March 2015 to 31st May 2015
Ministry of Justice,LEGAL AID AGENCY,24-Jun-15 ,512000-Intangible GBV - Additions,VA403-Integrated Delivery Programme - Infrastructure,ATOS IT SERVICES UK LTD,2001004,"10,000.00",Oracle Consulting Services - LAA Finance issue resolution (25 days)
Ministry of Justice,LEGAL AID AGENCY,03-Jun-15 ,512000-Intangible GBV - Additions,VA403-Integrated Delivery Programme - Infrastructure,ATOS IT SERVICES UK LTD,2000613,"25,430.40",Integrated Delivery Programme - Infrastructure
Ministry of Justice,LEGAL AID AGENCY,03-Jun-15 ,512000-Intangible GBV - Additions,VA403-Integrated Delivery Programme - Infrastructure,ATOS IT SERVICES UK LTD,2000613,"59,810.39",Integrated Delivery Programme - Infrastructure
Ministry of Justice,LEGAL AID AGENCY,17-Jun-15 ,512000-Intangible GBV - Additions,VA403-Integrated Delivery Programme - Infrastructure,ATOS IT SERVICES UK LTD,2000874,"8,957.40",LAA Provider User Interface Modernisation Project Proposal
Ministry of Justice,LEGAL AID AGENCY,03-Jun-15 ,512000-Intangible GBV - Additions,VA403-Integrated Delivery Programme - Infrastructure,ATOS IT SERVICES UK LTD,2000613,"127,151.98",CCN A-S-4169-04-v02 LAA Integrated Delivery Programme Resources Jan 2015 to April 2015
Ministry of Justice,LEGAL AID AGENCY,24-Jun-15 ,512000-Intangible GBV - Additions,VA403-Integrated Delivery Programme - Infrastructure,ATOS IT SERVICES UK LTD,2001004,"44,213.00",CCN4294-01 CPD Oracle Corp Resources for LAA Integrated Delivery Programme
Ministry of Justice,LEGAL AID AGENCY,17-Jun-15 ,512000-Intangible GBV - Additions,VA403-Integrated Delivery Programme - Infrastructure,ATOS IT SERVICES UK LTD,2000874,"44,787.00",LAA Provider User Interface Modernisation Project Proposal
Ministry of Justice,LEGAL AID AGENCY,24-Jun-15 ,512000-Intangible GBV - Additions,VA294-IT,ATOS IT SERVICES UK LTD,2001005,"24,000.00",CCN3969-01 LAA CCR & CCLF Oracle Web Server Migration
Ministry of Justice,LEGAL AID AGENCY,03-Jun-15 ,512000-Intangible GBV - Additions,VA403-Integrated Delivery Programme - Infrastructure,ATOS IT SERVICES UK LTD,2000613,"299,051.93",CCN A-S-4169-04-v02 LAA Integrated Delivery Programme Resources Jan 2015 to April 2015
Ministry of Justice,LEGAL AID AGENCY,17-Jun-15 ,512000-Intangible GBV - Additions,VA403-Integrated Delivery Programme - Infrastructure,ATOS IT SERVICES UK LTD,2000875,"28,358.15",Integrated Delivery Programme - Infrastructure
Ministry of Justice,LEGAL AID AGENCY,17-Jun-15 ,512000-Intangible GBV - Additions,VA403-Integrated Delivery Programme - Infrastructure,ATOS IT SERVICES UK LTD,2000875,"141,790.73",A-S-04169-03-v03 LAA Integrated Delivery Programme Resources Sept to Dec 2014
Ministry of Justice,LEGAL AID AGENCY,24-Jun-15 ,512000-Intangible GBV - Additions,VA294-IT,ATOS IT SERVICES UK LTD,2001005,"4,800.00",Intangible - Additions
Ministry of Justice,LEGAL AID AGENCY,24-Jun-15 ,512000-Intangible GBV - Additions,VA403-Integrated Delivery Programme - Infrastructure,ATOS IT SERVICES UK LTD,2001004,"50,000.00",Oracle Consulting Services (OCS) - LAA Finance issue resolution (25 days)
Ministry of Justice,LEGAL AID AGENCY,24-Jun-15 ,512000-Intangible GBV - Additions,VA294-ISD,ATOS IT SERVICES UK LTD,2001005,"22,000.00",CCN3969-01 LAA CCR & CCLF Oracle Web Server Migration
Ministry of Justice,LEGAL AID AGENCY,24-Jun-15 ,512000-Intangible GBV - Additions,VA294-IT,ATOS IT SERVICES UK LTD,2001005,"4,400.00",Intangible - Additions
Ministry of Justice,LEGAL AID AGENCY,24-Jun-15 ,512000-Intangible GBV - Additions,VA403-Integrated Delivery Programme - Infrastructure,ATOS IT SERVICES UK LTD,2001004,"8,842.60",CCN4294-01 CPD Oracle Corp Resources for LAA Integrated Delivery Programme
MINISTRY OF JUSTICE,LEGAL AID AGENCY,25-Jun-15 ,Civil Representation,LEGAL AID FUND,SALLY F BRADLEY QC,137333738,"35,575.20",Legal Aid Payment Civil Representation
MINISTRY OF JUSTICE,LEGAL AID AGENCY,03-Jun-15 ,Civil Representation,LEGAL AID FUND,M JAYNE PYE,138099293,"47,343.79",Legal Aid Payment Civil Representation
MINISTRY OF JUSTICE,LEGAL AID AGENCY,25-Jun-15 ,Civil Representation,LEGAL AID FUND,SALLY F BRADLEY QC,138721271,"37,836.00",Legal Aid Payment Civil Representation
MINISTRY OF JUSTICE,LEGAL AID AGENCY,03-Jun-15 ,Civil Representation,LEGAL AID FUND,QUALITY SOLICITORS LOCKINGS,140172853,"34,200.00",Legal Aid Payment Civil Representation
MINISTRY OF JUSTICE,LEGAL AID AGENCY,03-Jun-15 ,Civil Representation,LEGAL AID FUND,KNOWLES BENNING LLP,140213291,"29,186.00",Legal Aid Payment Civil Representation
MINISTRY OF JUSTICE,LEGAL AID AGENCY,03-Jun-15 ,Higher Crime,LEGAL AID FUND,MARY MONSON SOLICITORS,140223500,"38,869.20",Legal Aid Payment Higher Crime
MINISTRY OF JUSTICE,LEGAL AID AGENCY,03-Jun-15 ,Higher Crime,LEGAL AID FUND,SONN MACMILLAN WALKER LTD,140223540,"64,431.38",Legal Aid Payment Higher Crime
MINISTRY OF JUSTICE,LEGAL AID AGENCY,10-Jun-15 ,Civil Representation,LEGAL AID FUND,CAROLYN N JONES,140186265,"31,784.40",Legal Aid Payment Civil Representation
MINISTRY OF JUSTICE,LEGAL AID AGENCY,03-Jun-15 ,Higher Crime,LEGAL AID FUND,ARANI SOLICITORS,140239672,"25,388.93",Legal Aid Payment Higher Crime
MINISTRY OF JUSTICE,LEGAL AID AGENCY,03-Jun-15 ,Higher Crime,LEGAL AID FUND,MORGAN BROWN CAHILL SOLICITORS,140239531,"89,975.11",Legal Aid Payment Higher Crime
MINISTRY OF JUSTICE,LEGAL AID AGENCY,03-Jun-15 ,Higher Crime,LEGAL AID FUND,FREERS,140238842,"27,048.06",Legal Aid Payment Higher Crime
MINISTRY OF JUSTICE,LEGAL AID AGENCY,03-Jun-15 ,Higher Crime,LEGAL AID FUND,GORDON HENNELL,140254191,"27,873.96",Legal Aid Payment Higher Crime
MINISTRY OF JUSTICE,LEGAL AID AGENCY,03-Jun-15 ,Higher Crime,LEGAL AID FUND,K A SOLICITORS,140254660,"43,600.00",Legal Aid Payment Higher Crime
MINISTRY OF JUSTICE,LEGAL AID AGENCY,03-Jun-15 ,Higher Crime,LEGAL AID FUND,HOWARD BERNSTEIN SOLICITORS,140255811,"63,244.96",Legal Aid Payment Higher Crime
MINISTRY OF JUSTICE,LEGAL AID AGENCY,03-Jun-15 ,Civil Representation,LEGAL AID FUND,DAVID CENNYDD RICHARDS,140136446,"27,086.40",Legal Aid Payment Civil Representation
MINISTRY OF JUSTICE,LEGAL AID AGENCY,03-Jun-15 ,Higher Crime,LEGAL AID FUND,MICHAEL ALEXANDER & CO,140269512,"72,893.00",Legal Aid Payment Higher Crime
MINISTRY OF JUSTICE,LEGAL AID AGENCY,03-Jun-15 ,Civil Representation,LEGAL AID FUND,FRANCES J JUDD,139587280,"67,301.58",Legal Aid Payment Civil Representation
MINISTRY OF JUSTICE,LEGAL AID AGENCY,03-Jun-15 ,Civil Representation,LEGAL AID FUND,ELIZABETH ISAACS,139790413,"42,541.20",Legal Aid Payment Civil Representation
MINISTRY OF JUSTICE,LEGAL AID AGENCY,03-Jun-15 ,Civil Representation,LEGAL AID FUND,CHRISTOPHER GREEN MCCARRAHERS,140245181,"45,066.00",Legal Aid Payment Civil Representation
MINISTRY OF JUSTICE,LEGAL AID AGENCY,03-Jun-15 ,Higher Crime,LEGAL AID FUND,BERNARD G TETLOW QC,140292754,"51,001.08",Legal Aid Payment Higher Crime
MINISTRY OF JUSTICE,LEGAL AID AGENCY,03-Jun-15 ,Higher Crime,LEGAL AID FUND,FARADAYS SOLICITORS LTD,140291932,"63,187.74",Legal Aid Payment Higher Crime
MINISTRY OF JUSTICE,LEGAL AID AGENCY,03-Jun-15 ,Higher Crime,LEGAL AID FUND,MORGAN BROWN CAHILL SOLICITORS,140292842,"107,970.13",Legal Aid Payment Higher Crime
MINISTRY OF JUSTICE,LEGAL AID AGENCY,10-Jun-15 ,Civil Representation,LEGAL AID FUND,BEST SOLICITORS,140316739,"37,124.54",Legal Aid Payment Civil Representation
MINISTRY OF JUSTICE,LEGAL AID AGENCY,10-Jun-15 ,Civil Representation,LEGAL AID FUND,SAMANTHA L KING,140315753,"29,548.80",Legal Aid Payment Civil Representation
MINISTRY OF JUSTICE,LEGAL AID AGENCY,10-Jun-15 ,Higher Crime,LEGAL AID FUND,BURNLEY JONES BATE & CO,140307753,"116,008.49",Legal Aid Payment Higher Crime
MINISTRY OF JUSTICE,LEGAL AID AGENCY,10-Jun-15 ,Higher Crime,LEGAL AID FUND,DEXTER HENRY & CO,140340817,"46,729.61",Legal Aid Payment Higher Crime
MINISTRY OF JUSTICE,LEGAL AID AGENCY,10-Jun-15 ,Higher Crime,LEGAL AID FUND,KHAN'S LAW FIRM LTD TA KK & CO,140339845,"37,602.02",Legal Aid Payment Higher Crime
MINISTRY OF JUSTICE,LEGAL AID AGENCY,10-Jun-15 ,Higher Crime,LEGAL AID FUND,BARK & CO,140339647,"102,919.51",Legal Aid Payment Higher Crime
MINISTRY OF JUSTICE,LEGAL AID AGENCY,10-Jun-15 ,Civil Representation,LEGAL AID FUND,REES PAGE,140344210,"28,121.85",Legal Aid Payment Civil Representation
MINISTRY OF JUSTICE,LEGAL AID AGENCY,10-Jun-15 ,Civil Representation,LEGAL AID FUND,ROBIN W BELBEN,140346474,"25,898.40",Legal Aid Payment Civil Representation
MINISTRY OF JUSTICE,LEGAL AID AGENCY,10-Jun-15 ,Civil Representation,LEGAL AID FUND,STEPHENS & SCOWN LLP,140344871,"25,854.98",Legal Aid Payment Civil Representation
MINISTRY OF JUSTICE,LEGAL AID AGENCY,10-Jun-15 ,Higher Crime,LEGAL AID FUND,HENRY'S SOLICITORS LTD-ADVOCATE,140353972,"27,434.64",Legal Aid Payment Higher Crime
MINISTRY OF JUSTICE,LEGAL AID AGENCY,10-Jun-15 ,Higher Crime,LEGAL AID FUND,JERMAN SAMUELS & PEARSON LLP,140354078,"26,388.37",Legal Aid Payment Higher Crime
MINISTRY OF JUSTICE,LEGAL AID AGENCY,10-Jun-15 ,Higher Crime,LEGAL AID FUND,JOHN M ASPINALL QC,140354157,"56,581.67",Legal Aid Payment Higher Crime
MINISTRY OF JUSTICE,LEGAL AID AGENCY,10-Jun-15 ,Higher Crime,LEGAL AID FUND,JOHN J COFFEY QC,140381015,"30,295.06",Legal Aid Payment Higher Crime
MINISTRY OF JUSTICE,LEGAL AID AGENCY,10-Jun-15 ,Higher Crime,LEGAL AID FUND,DENNINGS SOLICITORS LTD,140380916,"37,602.02",Legal Aid Payment Higher Crime
MINISTRY OF JUSTICE,LEGAL AID AGENCY,10-Jun-15 ,Civil Representation,LEGAL AID FUND,SIMON L BICKLER,3000000624320003,"46,092.24",Legal Aid Payment Civil Representation
MINISTRY OF JUSTICE,LEGAL AID AGENCY,17-Jun-15 ,Civil Representation,LEGAL AID FUND,GAYNHAM KING & MELLOR,140406673,"38,383.40",Legal Aid Payment Civil Representation
MINISTRY OF JUSTICE,LEGAL AID AGENCY,17-Jun-15 ,Civil Representation,LEGAL AID FUND,KATE V BRANIGAN QC,140400391,"29,433.60",Legal Aid Payment Civil Representation
MINISTRY OF JUSTICE,LEGAL AID AGENCY,17-Jun-15 ,Civil Representation,LEGAL AID FUND,LAWRENCE & CO,140405400,"38,911.33",Legal Aid Payment Civil Representation
MINISTRY OF JUSTICE,LEGAL AID AGENCY,17-Jun-15 ,Civil Representation,LEGAL AID FUND,MCCORMACKS LAW,140401832,"61,479.05",Legal Aid Payment Civil Representation
MINISTRY OF JUSTICE,LEGAL AID AGENCY,17-Jun-15 ,Civil Representation,LEGAL AID FUND,JANE E CROWLEY QC,140342718,"54,191.66",Legal Aid Payment Civil Representation
MINISTRY OF JUSTICE,LEGAL AID AGENCY,17-Jun-15 ,Higher Crime,LEGAL AID FUND,PETER C E MOULSON,140422190,"31,951.45",Legal Aid Payment Higher Crime
MINISTRY OF JUSTICE,LEGAL AID AGENCY,17-Jun-15 ,Civil Representation,LEGAL AID FUND,FAISAL A SAIFEE,140424833,"28,982.50",Legal Aid Payment Civil Representation
MINISTRY OF JUSTICE,LEGAL AID AGENCY,17-Jun-15 ,Higher Crime,LEGAL AID FUND,PETER MOSS,140466816,"38,133.36",Legal Aid Payment Higher Crime
MINISTRY OF JUSTICE,LEGAL AID AGENCY,24-Jun-15 ,Higher Crime,LEGAL AID FUND,MUKHTAR HUSSAIN QC,140482705,"61,125.55",Legal Aid Payment Higher Crime
MINISTRY OF JUSTICE,LEGAL AID AGENCY,24-Jun-15 ,Higher Crime,LEGAL AID FUND,FORBES SOLICITORS,140482570,"25,053.26",Legal Aid Payment Higher Crime
MINISTRY OF JUSTICE,LEGAL AID AGENCY,24-Jun-15 ,Higher Crime,LEGAL AID FUND,JERMAN SAMUELS & PEARSON LLP,140497610,"30,352.92",Legal Aid Payment Higher Crime
MINISTRY OF JUSTICE,LEGAL AID AGENCY,24-Jun-15 ,Higher Crime,LEGAL AID FUND,HEIDI M KUBIK,140497644,"34,021.63",Legal Aid Payment Higher Crime
MINISTRY OF JUSTICE,LEGAL AID AGENCY,24-Jun-15 ,Higher Crime,LEGAL AID FUND,RICHARD NELSON SOLICITORS,140507166,"33,809.56",Legal Aid Payment Higher Crime
MINISTRY OF JUSTICE,LEGAL AID AGENCY,24-Jun-15 ,Higher Crime,LEGAL AID FUND,ZACHARIAS A A MIAH,140517147,"31,466.40",Legal Aid Payment Higher Crime
MINISTRY OF JUSTICE,LEGAL AID AGENCY,24-Jun-15 ,Higher Crime,LEGAL AID FUND,WELLS BURCOMBE LLP,140531180,"36,028.79",Legal Aid Payment Higher Crime
MINISTRY OF JUSTICE,LEGAL AID AGENCY,24-Jun-15 ,Higher Crime,LEGAL AID FUND,SEAN F HAMMOND,140551287,"25,564.70",Legal Aid Payment Higher Crime
MINISTRY OF JUSTICE,LEGAL AID AGENCY,24-Jun-15 ,Higher Crime,LEGAL AID FUND,NEUMANS LLP,140551713,"58,944.71",Legal Aid Payment Higher Crime
MINISTRY OF JUSTICE,LEGAL AID AGENCY,24-Jun-15 ,Higher Crime,LEGAL AID FUND,JOHN F LENNON,140555536,"41,087.03",Legal Aid Payment Higher Crime
MINISTRY OF JUSTICE,LEGAL AID AGENCY,24-Jun-15 ,Civil Representation,LEGAL AID FUND,RHYS M JONES,140558311,"39,614.40",Legal Aid Payment Civil Representation
MINISTRY OF JUSTICE,LEGAL AID AGENCY,24-Jun-15 ,Civil Representation,LEGAL AID FUND,CERYS WILLIAMS,140424650,"33,065.01",Legal Aid Payment Civil Representation
MINISTRY OF JUSTICE,LEGAL AID AGENCY,24-Jun-15 ,Civil Representation,LEGAL AID FUND,JANE HOYAL,140424825,"31,537.88",Legal Aid Payment Civil Representation
MINISTRY OF JUSTICE,LEGAL AID AGENCY,03-Jun-15 ,Civil Representation,LEGAL AID FUND,DODDS SOLICITORS LLP,140228723,"31,737.57",Legal Aid Payment Civil Representation
MINISTRY OF JUSTICE,LEGAL AID AGENCY,24-Jun-15 ,Higher Crime,LEGAL AID FUND,ROBIN G J MAIRS,140516312,"36,767.28",Legal Aid Payment Higher Crime
MINISTRY OF JUSTICE,LEGAL AID AGENCY,24-Jun-15 ,Civil Representation,LEGAL AID FUND,BRENDAN FLEMING SOLICITORS,140558174,"37,659.11",Legal Aid Payment Civil Representation
MINISTRY OF JUSTICE,LEGAL AID AGENCY,17-Jun-15 ,Higher Crime,LEGAL AID FUND,IAN J WHITEHURST,140411808,"35,265.00",Legal Aid Payment Higher Crime
MINISTRY OF JUSTICE,LEGAL AID AGENCY,10-Jun-15 ,Higher Crime,LEGAL AID FUND,DEXTER HENRY & CO,140339675,"36,816.84",Legal Aid Payment Higher Crime
MINISTRY OF JUSTICE,LEGAL AID AGENCY,03-Jun-15 ,Higher Crime,LEGAL AID FUND,FRASER COXHILL,140254810,"27,867.61",Legal Aid Payment Higher Crime
MINISTRY OF JUSTICE,LEGAL AID AGENCY,10-Jun-15 ,Higher Crime,LEGAL AID FUND,THOMPSON & CO,140340007,"98,602.86",Legal Aid Payment Higher Crime
MINISTRY OF JUSTICE,LEGAL AID AGENCY,03-Jun-15 ,Higher Crime,LEGAL AID FUND,KARIM & CO SOLICITORS,140291511,"32,509.10",Legal Aid Payment Higher Crime
MINISTRY OF JUSTICE,LEGAL AID AGENCY,10-Jun-15 ,Higher Crime,LEGAL AID FUND,SALHAN & CO LTD,140381394,"63,360.49",Legal Aid Payment Higher Crime
MINISTRY OF JUSTICE,LEGAL AID AGENCY,03-Jun-15 ,Higher Crime,LEGAL AID FUND,LEWIS NEDAS & CO,140292077,"49,538.05",Legal Aid Payment Higher Crime
MINISTRY OF JUSTICE,LEGAL AID AGENCY,10-Jun-15 ,Higher Crime,LEGAL AID FUND,ABRAHAM SOLICITORS LTD,140318873,"37,602.02",Legal Aid Payment Higher Crime
MINISTRY OF JUSTICE,LEGAL AID AGENCY,24-Jun-15 ,Civil Representation,LEGAL AID FUND,HAYGARTH JONES,140543519,"47,154.35",Legal Aid Payment Civil Representation
MINISTRY OF JUSTICE,LEGAL AID AGENCY,17-Jun-15 ,Higher Crime,LEGAL AID FUND,STUART MILLER SOLICITORS LTD,140465693,"54,080.14",Legal Aid Payment Higher Crime
MINISTRY OF JUSTICE,LEGAL AID AGENCY,10-Jun-15 ,Higher Crime,LEGAL AID FUND,STERNBERG REED SOLICITORS,140381947,"47,911.81",Legal Aid Payment Higher Crime
MINISTRY OF JUSTICE,LEGAL AID AGENCY,03-Jun-15 ,Higher Crime,LEGAL AID FUND,HOWELLS LLP,140255691,"107,574.07",Legal Aid Payment Higher Crime
MINISTRY OF JUSTICE,LEGAL AID AGENCY,10-Jun-15 ,Civil Representation,LEGAL AID FUND,PEARSONS,140320557,"38,291.40",Legal Aid Payment Civil Representation
MINISTRY OF JUSTICE,LEGAL AID AGENCY,17-Jun-15 ,Civil Representation,LEGAL AID FUND,GOODMAN RAY,140343511,"36,319.36",Legal Aid Payment Civil Representation
MINISTRY OF JUSTICE,LEGAL AID AGENCY,24-Jun-15 ,Higher Crime,LEGAL AID FUND,BENJAMIN NOLAN QC,140497895,"70,173.72",Legal Aid Payment Higher Crime
MINISTRY OF JUSTICE,LEGAL AID AGENCY,17-Jun-15 ,Higher Crime,LEGAL AID FUND,LLOYDS PR SOLICITORS,140396725,"45,066.78",Legal Aid Payment Higher Crime
MINISTRY OF JUSTICE,LEGAL AID AGENCY,03-Jun-15 ,Civil Representation,LEGAL AID FUND,E RACHAEL SMITH,3000000324450004,"28,252.80",Legal Aid Payment Civil Representation
MINISTRY OF JUSTICE,LEGAL AID AGENCY,10-Jun-15 ,Higher Crime,LEGAL AID FUND,PURCELL PARKER LTD,140307262,"59,011.26",Legal Aid Payment Higher Crime
MINISTRY OF JUSTICE,LEGAL AID AGENCY,03-Jun-15 ,Higher Crime,LEGAL AID FUND,DRAYCOTT BROWNE LTD,140268795,"107,970.13",Legal Aid Payment Higher Crime
MINISTRY OF JUSTICE,LEGAL AID AGENCY,03-Jun-15 ,Higher Crime,LEGAL AID FUND,BLACKFORDS LLP,140292820,"98,602.86",Legal Aid Payment Higher Crime
MINISTRY OF JUSTICE,LEGAL AID AGENCY,03-Jun-15 ,Higher Crime,LEGAL AID FUND,COLIN JONES CLARKE & HARTLAND SOLICITORS,140292805,"107,970.13",Legal Aid Payment Higher Crime
MINISTRY OF JUSTICE,LEGAL AID AGENCY,24-Jun-15 ,Higher Crime,LEGAL AID FUND,BIRNBERG PEIRCE LTD,140552329,"56,962.48",Legal Aid Payment Higher Crime
MINISTRY OF JUSTICE,LEGAL AID AGENCY,24-Jun-15 ,Civil Representation,LEGAL AID FUND,EDWARD HAYES LLP,140424316,"27,501.47",Legal Aid Payment Civil Representation
MINISTRY OF JUSTICE,LEGAL AID AGENCY,10-Jun-15 ,Civil Representation,LEGAL AID FUND,MACKINTOSH LAW,140389687,"64,544.69",Legal Aid Payment Civil Representation
MINISTRY OF JUSTICE,LEGAL AID AGENCY,10-Jun-15 ,Higher Crime,LEGAL AID FUND,KEANEY WHITEHEAD PARTNERSHIP,140307596,"41,624.23",Legal Aid Payment Higher Crime
MINISTRY OF JUSTICE,LEGAL AID AGENCY,03-Jun-15 ,Higher Crime,LEGAL AID FUND,T V EDWARDS LLP-ADVOCATE,140223395,"27,615.17",Legal Aid Payment Higher Crime
MINISTRY OF JUSTICE,LEGAL AID AGENCY,24-Jun-15 ,Higher Crime,LEGAL AID FUND,FARLEYS SOLICITORS LLP,140551691,"38,755.64",Legal Aid Payment Higher Crime
MINISTRY OF JUSTICE,LEGAL AID AGENCY,10-Jun-15 ,Higher Crime,LEGAL AID FUND,FRISBY SOLICITORS LTD,140307458,"72,935.50",Legal Aid Payment Higher Crime
MINISTRY OF JUSTICE,LEGAL AID AGENCY,15-Jun-15 ,Civil Representation,LEGAL AID FUND,DBL TALBOTS,Ledger Transfer Adjustment 799,"30,509.04",Legal Aid Payment Civil Representation
MINISTRY OF JUSTICE,LEGAL AID AGENCY,17-Jun-15 ,Higher Crime,LEGAL AID FUND,MOHABIRS SOLICITORS,140413203,"39,310.06",Legal Aid Payment Higher Crime
MINISTRY OF JUSTICE,LEGAL AID AGENCY,10-Jun-15 ,Civil Representation,LEGAL AID FUND,HANNE & CO,140345003,"27,011.46",Legal Aid Payment Civil Representation
MINISTRY OF JUSTICE,LEGAL AID AGENCY,17-Jun-15 ,Civil Representation,LEGAL AID FUND,LINDER MYERS LLP,140438196,"31,466.49",Legal Aid Payment Civil Representation
MINISTRY OF JUSTICE,LEGAL AID AGENCY,03-Jun-15 ,Higher Crime,LEGAL AID FUND,M & M SOLICITORS ,140239464,"89,975.11",Legal Aid Payment Higher Crime
MINISTRY OF JUSTICE,LEGAL AID AGENCY,03-Jun-15 ,Higher Crime,LEGAL AID FUND,FARLEYS SOLICITORS LLP,140255644,"51,700.50",Legal Aid Payment Higher Crime
MINISTRY OF JUSTICE,LEGAL AID AGENCY,24-Jun-15 ,Civil Representation,LEGAL AID FUND,KINGSFORDS LLP,139874724,"45,921.60",Legal Aid Payment Civil Representation
MINISTRY OF JUSTICE,LEGAL AID AGENCY,30-Jun-15 ,Civil Representation,LEGAL AID FUND,THOMSON SNELL & PASSMORE,Ledger Transfer Adjustment 805,"54,969.38",Legal Aid Payment Civil Representation
MINISTRY OF JUSTICE,LEGAL AID AGENCY,03-Jun-15 ,Civil Representation,LEGAL AID FUND,HOGANS,140301360,"41,936.15",Legal Aid Payment Civil Representation
MINISTRY OF JUSTICE,LEGAL AID AGENCY,03-Jun-15 ,Civil Representation,LEGAL AID FUND,WATKINS & GUNN,140302083,"38,693.37",Legal Aid Payment Civil Representation
MINISTRY OF JUSTICE,LEGAL AID AGENCY,03-Jun-15 ,Higher Crime,LEGAL AID FUND,"O'NEILL, WRIGHT & NASH",140238663,"28,815.77",Legal Aid Payment Higher Crime
MINISTRY OF JUSTICE,LEGAL AID AGENCY,17-Jun-15 ,Higher Crime,LEGAL AID FUND,ENNON & CO,140413222,"45,674.04",Legal Aid Payment Higher Crime
MINISTRY OF JUSTICE,LEGAL AID AGENCY,03-Jun-15 ,Higher Crime,LEGAL AID FUND,CATHERINE COLLINS,140212900,"39,458.04",Legal Aid Payment Higher Crime
MINISTRY OF JUSTICE,LEGAL AID AGENCY,24-Jun-15 ,Higher Crime,LEGAL AID FUND,SHEARMAN BOWEN & CO,140482810,"32,646.70",Legal Aid Payment Higher Crime
MINISTRY OF JUSTICE,LEGAL AID AGENCY,03-Jun-15 ,Civil Representation,LEGAL AID FUND,COVENT GARDEN FAMILY LAW SOLICITORS,140214942,"26,263.40",Legal Aid Payment Civil Representation
MINISTRY OF JUSTICE,LEGAL AID AGENCY,17-Jun-15 ,Civil Representation,LEGAL AID FUND,RAMSDENS SOLICITORS LLP,140402385,"58,819.21",Legal Aid Payment Civil Representation
MINISTRY OF JUSTICE,LEGAL AID AGENCY,10-Jun-15 ,Higher Crime,LEGAL AID FUND,MICHAEL J REED LTD,140353114,"81,856.32",Legal Aid Payment Higher Crime
MINISTRY OF JUSTICE,LEGAL AID AGENCY,03-Jun-15 ,Higher Crime,LEGAL AID FUND,KINGSLEY NAPLEY LLP,140260135,"44,154.26",Legal Aid Payment Higher Crime
MINISTRY OF JUSTICE,LEGAL AID AGENCY,03-Jun-15 ,Higher Crime,LEGAL AID FUND,DUNCAN LEWIS,140292073,"37,225.64",Legal Aid Payment Higher Crime
MINISTRY OF JUSTICE,LEGAL AID AGENCY,03-Jun-15 ,Higher Crime,LEGAL AID FUND,COOMBER RICH SOLICITORS,140239586,"86,831.50",Legal Aid Payment Higher Crime
MINISTRY OF JUSTICE,LEGAL AID AGENCY,03-Jun-15 ,Civil Representation,LEGAL AID FUND,TANYA ZABIHI,139976244,"27,561.60",Legal Aid Payment Civil Representation
MINISTRY OF JUSTICE,LEGAL AID AGENCY,24-Jun-15 ,Higher Crime,LEGAL AID FUND,CARTER MOORE SOLICITORS LTD,140543433,"26,990.88",Legal Aid Payment Higher Crime
MINISTRY OF JUSTICE,LEGAL AID AGENCY,17-Jun-15 ,Civil Representation,LEGAL AID FUND,CHADWICK LAWRENCE LLP,140417415,"62,644.18",Legal Aid Payment Civil Representation
MINISTRY OF JUSTICE,LEGAL AID AGENCY,10-Jun-15 ,Higher Crime,LEGAL AID FUND,G T STEWART SOLICITORS,140381139,"39,582.31",Legal Aid Payment Higher Crime
MINISTRY OF JUSTICE,LEGAL AID AGENCY,10-Jun-15 ,Civil Representation,LEGAL AID FUND,CHILD LAW PARTNERSHIP LTD,140315721,"29,555.01",Legal Aid Payment Civil Representation
MINISTRY OF JUSTICE,LEGAL AID AGENCY,10-Jun-15 ,Civil Representation,LEGAL AID FUND,STEPHENS & SCOWN LLP,140214822,"27,733.03",Legal Aid Payment Civil Representation
MINISTRY OF JUSTICE,LEGAL AID AGENCY,24-Jun-15 ,Higher Crime,LEGAL AID FUND,JON R CLOSE,140497708,"40,125.24",Legal Aid Payment Higher Crime
MINISTRY OF JUSTICE,LEGAL AID AGENCY,10-Jun-15 ,Higher Crime,LEGAL AID FUND,THE CENTRAL LAW PRACTICE,140308210,"39,985.16",Legal Aid Payment Higher Crime
MINISTRY OF JUSTICE,LEGAL AID AGENCY,17-Jun-15 ,Civil Representation,LEGAL AID FUND,WILLSONS SOLICITORS,140427269,"25,021.80",Legal Aid Payment Civil Representation
MINISTRY OF JUSTICE,LEGAL AID AGENCY,03-Jun-15 ,Higher Crime,LEGAL AID FUND,BROOKLYN SOLICITORS,140224435,"29,664.55",Legal Aid Payment Higher Crime
MINISTRY OF JUSTICE,LEGAL AID AGENCY,03-Jun-15 ,Higher Crime,LEGAL AID FUND,NELSON GUEST & PARTNERS,140292125,"26,624.95",Legal Aid Payment Higher Crime
MINISTRY OF JUSTICE,LEGAL AID AGENCY,03-Jun-15 ,Higher Crime,LEGAL AID FUND,SAUNDERS SOLICITORS LTD,140292649,"139,210.19",Legal Aid Payment Higher Crime
MINISTRY OF JUSTICE,LEGAL AID AGENCY,10-Jun-15 ,Civil Representation,LEGAL AID FUND,J D SPICER ZEB,140368316,"43,721.62",Legal Aid Payment Civil Representation
MINISTRY OF JUSTICE,LEGAL AID AGENCY,17-Jun-15 ,Higher Crime,LEGAL AID FUND,J D SPICER ZEB,140466923,"31,823.11",Legal Aid Payment Higher Crime
MINISTRY OF JUSTICE,LEGAL AID AGENCY,03-Jun-15 ,Higher Crime,LEGAL AID FUND,RICHARD G SIMONS,140223342,"27,900.00",Legal Aid Payment Higher Crime
MINISTRY OF JUSTICE,LEGAL AID AGENCY,24-Jun-15 ,Higher Crime,LEGAL AID FUND,BRIGHOUSE WOLFF,140516501,"34,578.92",Legal Aid Payment Higher Crime
MINISTRY OF JUSTICE,LEGAL AID AGENCY,03-Jun-15 ,Higher Crime,LEGAL AID FUND,MCGREGOR'S SOLICITORS,140293068,"25,285.60",Legal Aid Payment Higher Crime
MINISTRY OF JUSTICE,LEGAL AID AGENCY,10-Jun-15 ,Civil Representation,LEGAL AID FUND,EDWARDS DUTHIE,140375263,"25,040.01",Legal Aid Payment Civil Representation
MINISTRY OF JUSTICE,LEGAL AID AGENCY,10-Jun-15 ,Higher Crime,LEGAL AID FUND,JOSEPH HILL & CO,140380850,"57,278.22",Legal Aid Payment Higher Crime
MINISTRY OF JUSTICE,LEGAL AID AGENCY,10-Jun-15 ,Higher Crime,LEGAL AID FUND,BRUNSKILL LTD,140380849,"54,497.60",Legal Aid Payment Higher Crime
MINISTRY OF JUSTICE,LEGAL AID AGENCY,03-Jun-15 ,Higher Crime,LEGAL AID FUND,BAILEY GARCHA LAW,140255782,"107,574.07",Legal Aid Payment Higher Crime
MINISTRY OF JUSTICE,LEGAL AID AGENCY,03-Jun-15 ,Civil Representation,LEGAL AID FUND,HCB WIDDOWS MASON LTD,140216319,"28,931.89",Legal Aid Payment Civil Representation
MINISTRY OF JUSTICE,LEGAL AID AGENCY,03-Jun-15 ,Higher Crime,LEGAL AID FUND,FREEMANS SOLICITORS.,140292627,"85,982.76",Legal Aid Payment Higher Crime
MINISTRY OF JUSTICE,LEGAL AID AGENCY,10-Jun-15 ,Higher Crime,LEGAL AID FUND,JONATHAN C TURNER QC,140340590,"66,953.14",Legal Aid Payment Higher Crime
MINISTRY OF JUSTICE,LEGAL AID AGENCY,03-Jun-15 ,Lower Crime,LEGAL AID FUND,SWITALSKI'S LTD,140280510,"27,068.90",Legal Aid Payment Lower Crime
MINISTRY OF JUSTICE,LEGAL AID AGENCY,03-Jun-15 ,Higher Crime,LEGAL AID FUND,BURTON COPELAND LLP,140302892,"30,891.27",Legal Aid Payment Higher Crime
MINISTRY OF JUSTICE,LEGAL AID AGENCY,10-Jun-15 ,Higher Crime,LEGAL AID FUND,PURCELL PARKER LTD,140340012,"107,574.07",Legal Aid Payment Higher Crime
MINISTRY OF JUSTICE,LEGAL AID AGENCY,17-Jun-15 ,Civil Representation,LEGAL AID FUND,SWITALSKI'S LTD,140285993,"39,570.53",Legal Aid Payment Civil Representation
MINISTRY OF JUSTICE,LEGAL AID AGENCY,03-Jun-15 ,Higher Crime,LEGAL AID FUND,G T STEWART SOLICITORS,140291059,"81,131.29",Legal Aid Payment Higher Crime
MINISTRY OF JUSTICE,LEGAL AID AGENCY,03-Jun-15 ,Higher Crime,LEGAL AID FUND,BAILEY GARCHA LAW,140292180,"69,112.92",Legal Aid Payment Higher Crime
MINISTRY OF JUSTICE,LEGAL AID AGENCY,23-Jun-15 ,Civil Representation,LEGAL AID FUND,ANTHONY COLLINS LLP,Ledger Transfer Adjustment 804,"25,707.76",Legal Aid Payment Civil Representation
MINISTRY OF JUSTICE,LEGAL AID AGENCY,24-Jun-15 ,Civil Representation,LEGAL AID FUND,DAWSON CORNWELL,140559445,"44,264.25",Legal Aid Payment Civil Representation
MINISTRY OF JUSTICE,LEGAL AID AGENCY,24-Jun-15 ,Civil Representation,LEGAL AID FUND,JOHN R G WORRALL,140486668,"35,316.00",Legal Aid Payment Civil Representation
MINISTRY OF JUSTICE,LEGAL AID AGENCY,03-Jun-15 ,Civil Representation,LEGAL AID FUND,RAYAT & CO,139973332,"26,360.94",Legal Aid Payment Civil Representation
MINISTRY OF JUSTICE,LEGAL AID AGENCY,17-Jun-15 ,Higher Crime,LEGAL AID FUND,HOGAN BROWN SOLICITORS,140397070,"47,549.82",Legal Aid Payment Higher Crime
MINISTRY OF JUSTICE,LEGAL AID AGENCY,10-Jun-15 ,Civil Representation,LEGAL AID FUND,BEST SOLICITORS,140263992,"42,074.54",Legal Aid Payment Civil Representation
MINISTRY OF JUSTICE,LEGAL AID AGENCY,04-Jun-15 ,Civil Representation,LEGAL AID FUND,BARLOW ROBBINS LLP,Ledger Transfer Adjustment 779,"41,922.18",Legal Aid Payment Civil Representation
MINISTRY OF JUSTICE,LEGAL AID AGENCY,03-Jun-15 ,Civil Representation,LEGAL AID FUND,LESLEY S MCKENZIE,140211817,"35,640.00",Legal Aid Payment Civil Representation
MINISTRY OF JUSTICE,LEGAL AID AGENCY,03-Jun-15 ,Higher Crime,LEGAL AID FUND,DOMINIC R M THOMAS,140239333,"35,437.32",Legal Aid Payment Higher Crime
MINISTRY OF JUSTICE,LEGAL AID AGENCY,17-Jun-15 ,Higher Crime,LEGAL AID FUND,CARTWRIGHT KING SOLICITORS,140422110,"30,434.74",Legal Aid Payment Higher Crime
MINISTRY OF JUSTICE,LEGAL AID AGENCY,17-Jun-15 ,Civil Representation,LEGAL AID FUND,ISON HARRISON LTD,140470571,"28,253.37",Legal Aid Payment Civil Representation
MINISTRY OF JUSTICE,LEGAL AID AGENCY,03-Jun-15 ,Higher Crime,LEGAL AID FUND,WARWICK SOLICITORS,140223356,"46,937.24",Legal Aid Payment Higher Crime
MINISTRY OF JUSTICE,LEGAL AID AGENCY,24-Jun-15 ,Civil Representation,LEGAL AID FUND,JILLIAN M HURWORTH,140486304,"25,855.20",Legal Aid Payment Civil Representation
MINISTRY OF JUSTICE,LEGAL AID AGENCY,10-Jun-15 ,Higher Crime,LEGAL AID FUND,QS JACKSON CANTER LTD,140354294,"107,970.13",Legal Aid Payment Higher Crime
MINISTRY OF JUSTICE,LEGAL AID AGENCY,03-Jun-15 ,Higher Crime,LEGAL AID FUND,PATRICK W DUFFY,140254678,"30,894.84",Legal Aid Payment Higher Crime
MINISTRY OF JUSTICE,LEGAL AID AGENCY,17-Jun-15 ,Civil Representation,LEGAL AID FUND,CLARE L GARNHAM,140417420,"55,608.00",Legal Aid Payment Civil Representation
MINISTRY OF JUSTICE,LEGAL AID AGENCY,03-Jun-15 ,Civil Representation,LEGAL AID FUND,STEPHEN GRIME QC,139517983,"49,522.50",Legal Aid Payment Civil Representation
MINISTRY OF JUSTICE,LEGAL AID AGENCY,03-Jun-15 ,Higher Crime,LEGAL AID FUND,CHRISTOPHER J MILLINGTON,140254875,"30,341.50",Legal Aid Payment Higher Crime
MINISTRY OF JUSTICE,LEGAL AID AGENCY,03-Jun-15 ,Higher Crime,LEGAL AID FUND,RASHAD MOHAMMED,140268275,"36,012.43",Legal Aid Payment Higher Crime
MINISTRY OF JUSTICE,LEGAL AID AGENCY,17-Jun-15 ,Higher Crime,LEGAL AID FUND,MARK MATTHEWS,140466982,"30,665.64",Legal Aid Payment Higher Crime
MINISTRY OF JUSTICE,LEGAL AID AGENCY,10-Jun-15 ,Higher Crime,LEGAL AID FUND,KANGS SOLICITORS,140381508,"116,008.49",Legal Aid Payment Higher Crime
MINISTRY OF JUSTICE,LEGAL AID AGENCY,03-Jun-15 ,Civil Representation,LEGAL AID FUND,PAUL M STOREY QC,139892640,"82,538.40",Legal Aid Payment Civil Representation
MINISTRY OF JUSTICE,LEGAL AID AGENCY,03-Jun-15 ,Higher Crime,LEGAL AID FUND,COBLEYS LLP,140223502,"32,750.52",Legal Aid Payment Higher Crime
MINISTRY OF JUSTICE,LEGAL AID AGENCY,10-Jun-15 ,Higher Crime,LEGAL AID FUND,KBS SOLICITORS,140340625,"68,225.95",Legal Aid Payment Higher Crime
MINISTRY OF JUSTICE,LEGAL AID AGENCY,24-Jun-15 ,Higher Crime,LEGAL AID FUND,SOLOMON LAW SOLICITORS LTD,140483622,"39,738.14",Legal Aid Payment Higher Crime
MINISTRY OF JUSTICE,LEGAL AID AGENCY,24-Jun-15 ,Higher Crime,LEGAL AID FUND,DDE LAW LTD,140484041,"29,525.95",Legal Aid Payment Higher Crime
MINISTRY OF JUSTICE,LEGAL AID AGENCY,17-Jun-15 ,Higher Crime,LEGAL AID FUND,MCCORMACKS LAW,140396704,"31,122.47",Legal Aid Payment Higher Crime
MINISTRY OF JUSTICE,LEGAL AID AGENCY,03-Jun-15 ,Civil Representation,LEGAL AID FUND,HAYLEY M DANIEL,140227248,"39,873.60",Legal Aid Payment Civil Representation
MINISTRY OF JUSTICE,LEGAL AID AGENCY,17-Jun-15 ,Civil Representation,LEGAL AID FUND,SWITALSKI'S LTD,140286023,"29,605.40",Legal Aid Payment Civil Representation
MINISTRY OF JUSTICE,LEGAL AID AGENCY,24-Jun-15 ,Civil Representation,LEGAL AID FUND,W M B LAW LTD,140461098,"42,111.08",Legal Aid Payment Civil Representation
MINISTRY OF JUSTICE,LEGAL AID AGENCY,24-Jun-15 ,Higher Crime,LEGAL AID FUND,TUCKERS SOLICITORS LLP,140531648,"27,189.06",Legal Aid Payment Higher Crime
MINISTRY OF JUSTICE,LEGAL AID AGENCY,17-Jun-15 ,Civil Representation,LEGAL AID FUND,WILLSONS SOLICITORS,140400705,"26,049.93",Legal Aid Payment Civil Representation
MINISTRY OF JUSTICE,LEGAL AID AGENCY,17-Jun-15 ,Higher Crime,LEGAL AID FUND,PURCELL PARKER LTD-ADVOCATE,140412307,"35,443.63",Legal Aid Payment Higher Crime
MINISTRY OF JUSTICE,LEGAL AID AGENCY,03-Jun-15 ,Civil Representation,LEGAL AID FUND,AVERY NAYLOR LTD,140231636,"36,043.04",Legal Aid Payment Civil Representation
MINISTRY OF JUSTICE,LEGAL AID AGENCY,03-Jun-15 ,Civil Representation,LEGAL AID FUND,EUFRON VAN BESOUW,140262715,"25,855.20",Legal Aid Payment Civil Representation
MINISTRY OF JUSTICE,LEGAL AID AGENCY,17-Jun-15 ,Civil Representation,LEGAL AID FUND,MACKINTOSH LAW,140407356,"28,800.00",Legal Aid Payment Civil Representation
MINISTRY OF JUSTICE,LEGAL AID AGENCY,24-Jun-15 ,Higher Crime,LEGAL AID FUND,STEPHEN N SPENCE,140551083,"26,465.18",Legal Aid Payment Higher Crime
MINISTRY OF JUSTICE,LEGAL AID AGENCY,16-Jun-15 ,Civil Representation,LEGAL AID FUND,ANTHONY COLLINS LLP,Ledger Transfer Adjustment 803,"194,833.40",Legal Aid Payment Civil Representation
MINISTRY OF JUSTICE,LEGAL AID AGENCY,10-Jun-15 ,Higher Crime,LEGAL AID FUND,J D SPICER ZEB,140339602,"25,592.51",Legal Aid Payment Higher Crime
MINISTRY OF JUSTICE,LEGAL AID AGENCY,17-Jun-15 ,Civil Representation,LEGAL AID FUND,THOMAS A MCGIVERN,140438474,"43,242.36",Legal Aid Payment Civil Representation
MINISTRY OF JUSTICE,LEGAL AID AGENCY,17-Jun-15 ,Higher Crime,LEGAL AID FUND,THE CENTRAL LAW PRACTICE,140467623,"30,087.65",Legal Aid Payment Higher Crime
MINISTRY OF JUSTICE,LEGAL AID AGENCY,10-Jun-15 ,Civil Representation,LEGAL AID FUND,RACHEL S SLEEMAN,140388425,"32,632.44",Legal Aid Payment Civil Representation
MINISTRY OF JUSTICE,LEGAL AID AGENCY,17-Jun-15 ,Higher Crime,LEGAL AID FUND,MICHAEL MAGARIAN QC,140422255,"37,704.79",Legal Aid Payment Higher Crime
MINISTRY OF JUSTICE,LEGAL AID AGENCY,17-Jun-15 ,Higher Crime,LEGAL AID FUND,NEUMANS LLP,140465646,"116,008.49",Legal Aid Payment Higher Crime
MINISTRY OF JUSTICE,LEGAL AID AGENCY,24-Jun-15 ,Higher Crime,LEGAL AID FUND,GARTSIDES,140498132,"31,970.14",Legal Aid Payment Higher Crime
MINISTRY OF JUSTICE,LEGAL AID AGENCY,24-Jun-15 ,Higher Crime,LEGAL AID FUND,DARREN S PRESTON,140552463,"32,619.05",Legal Aid Payment Higher Crime
MINISTRY OF JUSTICE,LEGAL AID AGENCY,17-Jun-15 ,Civil Representation,LEGAL AID FUND,RAMSDENS SOLICITORS LLP,140357489,"69,001.75",Legal Aid Payment Civil Representation
MINISTRY OF JUSTICE,LEGAL AID AGENCY,24-Jun-15 ,Higher Crime,LEGAL AID FUND,CHRISTOPHER J SUTTON-MATTOCKS,140483226,"35,734.80",Legal Aid Payment Higher Crime
MINISTRY OF JUSTICE,LEGAL AID AGENCY,17-Jun-15 ,Civil Representation,LEGAL AID FUND,HARDINGTON HOGG,140460075,"36,702.40",Legal Aid Payment Civil Representation
MINISTRY OF JUSTICE,LEGAL AID AGENCY,24-Jun-15 ,Civil Representation,LEGAL AID FUND,CHARLES S MCCAIN,140400727,"48,016.80",Legal Aid Payment Civil Representation
MINISTRY OF JUSTICE,LEGAL AID AGENCY,24-Jun-15 ,Higher Crime,LEGAL AID FUND,SHERYL NWOSU,140498742,"32,860.94",Legal Aid Payment Higher Crime
MINISTRY OF JUSTICE,LEGAL AID AGENCY,10-Jun-15 ,Civil Representation,LEGAL AID FUND,ESKINAZI & CO,140344529,"27,554.69",Legal Aid Payment Civil Representation
MINISTRY OF JUSTICE,LEGAL AID AGENCY,24-Jun-15 ,Higher Crime,LEGAL AID FUND,GARSTANGS BURROWS BUSSIN LLP,140559728,"196,249.98",Legal Aid Payment Higher Crime
MINISTRY OF JUSTICE,LEGAL AID AGENCY,03-Jun-15 ,Civil Representation,LEGAL AID FUND,MARTIN J BLOUNT,140245353,"34,200.00",Legal Aid Payment Civil Representation
MINISTRY OF JUSTICE,LEGAL AID AGENCY,10-Jun-15 ,Higher Crime,LEGAL AID FUND,NEWGATE SOLICITORS,140308399,"64,431.38",Legal Aid Payment Higher Crime
MINISTRY OF JUSTICE,LEGAL AID AGENCY,24-Jun-15 ,Higher Crime,LEGAL AID FUND,SONN MACMILLAN WALKER LTD,140560233,"32,466.78",Legal Aid Payment Higher Crime
MINISTRY OF JUSTICE,LEGAL AID AGENCY,03-Jun-15 ,Civil Representation,LEGAL AID FUND,RUSSELL-COOKE LLP,140172847,"28,643.40",Legal Aid Payment Civil Representation
MINISTRY OF JUSTICE,LEGAL AID AGENCY,24-Jun-15 ,Higher Crime,LEGAL AID FUND,MICHAEL H SCHOLES,140551825,"38,771.76",Legal Aid Payment Higher Crime
MINISTRY OF JUSTICE,LEGAL AID AGENCY,03-Jun-15 ,Higher Crime,LEGAL AID FUND,HUGHMANS,140292836,"85,327.21",Legal Aid Payment Higher Crime
MINISTRY OF JUSTICE,LEGAL AID AGENCY,10-Jun-15 ,Higher Crime,LEGAL AID FUND,M K LAW SOLICITORS LTD,140339378,"38,168.49",Legal Aid Payment Higher Crime
MINISTRY OF JUSTICE,LEGAL AID AGENCY,03-Jun-15 ,Civil Representation,LEGAL AID FUND,MORTIMERS SOLICITORS,140172935,"62,624.99",Legal Aid Payment Civil Representation
MINISTRY OF JUSTICE,LEGAL AID AGENCY,03-Jun-15 ,Higher Crime,LEGAL AID FUND,DAVID H T JEREMY QC,140254820,"55,273.96",Legal Aid Payment Higher Crime
MINISTRY OF JUSTICE,LEGAL AID AGENCY,03-Jun-15 ,Higher Crime,LEGAL AID FUND,TIMOTHY J MOLONEY QC,140238173,"64,109.87",Legal Aid Payment Higher Crime
MINISTRY OF JUSTICE,LEGAL AID AGENCY,17-Jun-15 ,Higher Crime,LEGAL AID FUND,EBR ATTRIDGE LLP,140465679,"105,857.75",Legal Aid Payment Higher Crime
MINISTRY OF JUSTICE,LEGAL AID AGENCY,03-Jun-15 ,Civil Representation,LEGAL AID FUND,ANDREWS MCQUEEN SOLICITORS,140232546,"47,293.71",Legal Aid Payment Civil Representation
MINISTRY OF JUSTICE,LEGAL AID AGENCY,24-Jun-15 ,Higher Crime,LEGAL AID FUND,RAHMAN RAVELLI SOLICTORS LTD,140489709,"25,657.30",Legal Aid Payment Higher Crime
MINISTRY OF JUSTICE,LEGAL AID AGENCY,24-Jun-15 ,Higher Crime,LEGAL AID FUND,RODERICK S JOHNSON QC,140484052,"25,347.72",Legal Aid Payment Higher Crime
MINISTRY OF JUSTICE,LEGAL AID AGENCY,03-Jun-15 ,Civil Representation,LEGAL AID FUND,REDFEARNS SOLICITORS LLP,140211841,"37,937.02",Legal Aid Payment Civil Representation
MINISTRY OF JUSTICE,LEGAL AID AGENCY,03-Jun-15 ,Higher Crime,LEGAL AID FUND,MATTHEW E RADSTONE,140254337,"35,213.03",Legal Aid Payment Higher Crime
MINISTRY OF JUSTICE,LEGAL AID AGENCY,10-Jun-15 ,Higher Crime,LEGAL AID FUND,ASKEWS LEGAL LLP,140340055,"98,602.86",Legal Aid Payment Higher Crime
MINISTRY OF JUSTICE,LEGAL AID AGENCY,17-Jun-15 ,Higher Crime,LEGAL AID FUND,CUNNINGHAMS LYTHGOE CAPLIN LTD,140467538,"45,546.01",Legal Aid Payment Higher Crime
MINISTRY OF JUSTICE,LEGAL AID AGENCY,10-Jun-15 ,Civil Representation,LEGAL AID FUND,CREIGHTON & PARTNERS,140314436,"25,455.38",Legal Aid Payment Civil Representation
MINISTRY OF JUSTICE,LEGAL AID AGENCY,10-Jun-15 ,Civil Representation,LEGAL AID FUND,HAYGARTH JONES,140309871,"45,384.05",Legal Aid Payment Civil Representation
MINISTRY OF JUSTICE,LEGAL AID AGENCY,03-Jun-15 ,Higher Crime,LEGAL AID FUND,"MOSS & CO, SOLICITORS",140292529,"64,774.92",Legal Aid Payment Higher Crime
MINISTRY OF JUSTICE,LEGAL AID AGENCY,03-Jun-15 ,Lower Crime,LEGAL AID FUND,O'GARRA'S SOLICITORS,140280482,"41,746.38",Legal Aid Payment Lower Crime
MINISTRY OF JUSTICE,LEGAL AID AGENCY,10-Jun-15 ,Higher Crime,LEGAL AID FUND,STOKOE PARTNERSHIP,140354522,"37,296.80",Legal Aid Payment Higher Crime
MINISTRY OF JUSTICE,LEGAL AID AGENCY,10-Jun-15 ,Higher Crime,LEGAL AID FUND,CHARLES I SHERRARD,140380554,"44,694.02",Legal Aid Payment Higher Crime
MINISTRY OF JUSTICE,LEGAL AID AGENCY,24-Jun-15 ,Civil Representation,LEGAL AID FUND,GRAHAME STOWE BATESON,140522573,"33,743.34",Legal Aid Payment Civil Representation
MINISTRY OF JUSTICE,LEGAL AID AGENCY,10-Jun-15 ,Higher Crime,LEGAL AID FUND,NIGEL L LITHMAN QC,140380327,"29,120.26",Legal Aid Payment Higher Crime
MINISTRY OF JUSTICE,LEGAL AID AGENCY,03-Jun-15 ,Civil Representation,LEGAL AID FUND,LUCY E LEADER,140231673,"29,937.60",Legal Aid Payment Civil Representation
MINISTRY OF JUSTICE,LEGAL AID AGENCY,17-Jun-15 ,Higher Crime,LEGAL AID FUND,VERONICA M RAMSDEN,140466474,"44,966.21",Legal Aid Payment Higher Crime
MINISTRY OF JUSTICE,LEGAL AID AGENCY,24-Jun-15 ,Higher Crime,LEGAL AID FUND,ONUMA & CO,140482301,"35,825.27",Legal Aid Payment Higher Crime
MINISTRY OF JUSTICE,LEGAL AID AGENCY,10-Jun-15 ,Higher Crime,LEGAL AID FUND,TUCKERS SOLICITORS LLP,140380514,"50,612.98",Legal Aid Payment Higher Crime
MINISTRY OF JUSTICE,LEGAL AID AGENCY,10-Jun-15 ,Higher Crime,LEGAL AID FUND,THOMAS BOYD WHYTE,140339980,"112,521.07",Legal Aid Payment Higher Crime
MINISTRY OF JUSTICE,LEGAL AID AGENCY,10-Jun-15 ,Civil Representation,LEGAL AID FUND,REENA GHAI SOLICITOR LLB(HONS),140313079,"41,724.23",Legal Aid Payment Civil Representation
MINISTRY OF JUSTICE,LEGAL AID AGENCY,03-Jun-15 ,Higher Crime,LEGAL AID FUND,HOGAN BROWN SOLICITORS,140292623,"75,135.29",Legal Aid Payment Higher Crime
MINISTRY OF JUSTICE,LEGAL AID AGENCY,03-Jun-15 ,Higher Crime,LEGAL AID FUND,COBLEYS LLP,140292798,"107,970.13",Legal Aid Payment Higher Crime
MINISTRY OF JUSTICE,LEGAL AID AGENCY,24-Jun-15 ,Higher Crime,LEGAL AID FUND,HARRY POTTER,140531613,"35,213.03",Legal Aid Payment Higher Crime
MINISTRY OF JUSTICE,LEGAL AID AGENCY,10-Jun-15 ,Higher Crime,LEGAL AID FUND,BLACKFORDS LLP,140340802,"37,891.22",Legal Aid Payment Higher Crime
MINISTRY OF JUSTICE,LEGAL AID AGENCY,03-Jun-15 ,Civil Representation,LEGAL AID FUND,ISON HARRISON LTD,140259061,"27,854.86",Legal Aid Payment Civil Representation
MINISTRY OF JUSTICE,LEGAL AID AGENCY,24-Jun-15 ,Higher Crime,LEGAL AID FUND,ASHRAF KHAN,140515803,"29,933.78",Legal Aid Payment Higher Crime
MINISTRY OF JUSTICE,LEGAL AID AGENCY,24-Jun-15 ,Civil Representation,LEGAL AID FUND,LEWIS DONNELLY,140554689,"34,593.60",Legal Aid Payment Civil Representation
MINISTRY OF JUSTICE,LEGAL AID AGENCY,03-Jun-15 ,Higher Crime,LEGAL AID FUND,RONALD BOSTWICK,140255764,"25,839.58",Legal Aid Payment Higher Crime
MINISTRY OF JUSTICE,LEGAL AID AGENCY,17-Jun-15 ,Civil Representation,LEGAL AID FUND,SWITALSKI'S LTD,140286033,"30,840.01",Legal Aid Payment Civil Representation
MINISTRY OF JUSTICE,LEGAL AID AGENCY,24-Jun-15 ,Higher Crime,LEGAL AID FUND,J PETER G GRIFFITHS QC,140524548,"62,400.00",Legal Aid Payment Higher Crime
MINISTRY OF JUSTICE,LEGAL AID AGENCY,24-Jun-15 ,Civil Representation,LEGAL AID FUND,WADDINGTON & SON,140504550,"27,163.94",Legal Aid Payment Civil Representation
MINISTRY OF JUSTICE,LEGAL AID AGENCY,17-Jun-15 ,Higher Crime,LEGAL AID FUND,O'KEEFFE SOLICITORS,140423517,"40,552.10",Legal Aid Payment Higher Crime
MINISTRY OF JUSTICE,LEGAL AID AGENCY,17-Jun-15 ,Civil Representation,LEGAL AID FUND,H JONATHAN FURNESS QC,140438468,"58,520.64",Legal Aid Payment Civil Representation
MINISTRY OF JUSTICE,LEGAL AID AGENCY,24-Jun-15 ,Civil Representation,LEGAL AID FUND,QUALITYSOLICITORS GREGSONS ,140544212,"50,970.08",Legal Aid Payment Civil Representation
MINISTRY OF JUSTICE,LEGAL AID AGENCY,17-Jun-15 ,Higher Crime,LEGAL AID FUND,MIDDLEWEEKS,140412159,"32,509.10",Legal Aid Payment Higher Crime
MINISTRY OF JUSTICE,LEGAL AID AGENCY,03-Jun-15 ,Higher Crime,LEGAL AID FUND,DUNCAN LEWIS,140292849,"112,521.07",Legal Aid Payment Higher Crime
MINISTRY OF JUSTICE,LEGAL AID AGENCY,17-Jun-15 ,Higher Crime,LEGAL AID FUND,QUINN MELVILLE,140423543,"32,762.39",Legal Aid Payment Higher Crime
MINISTRY OF JUSTICE,LEGAL AID AGENCY,24-Jun-15 ,Higher Crime,LEGAL AID FUND,DASS SOLICITORS,140552172,"44,581.83",Legal Aid Payment Higher Crime
MINISTRY OF JUSTICE,LEGAL AID AGENCY,03-Jun-15 ,Civil Representation,LEGAL AID FUND,JAMES J HARGAN,140213277,"31,363.20",Legal Aid Payment Civil Representation
MINISTRY OF JUSTICE,LEGAL AID AGENCY,03-Jun-15 ,Civil Representation,LEGAL AID FUND,NAOMI MARIA MADDERSON,140152200,"28,114.30",Legal Aid Payment Civil Representation
MINISTRY OF JUSTICE,LEGAL AID AGENCY,10-Jun-15 ,Higher Crime,LEGAL AID FUND,QS JACKSON CANTER LTD,140354335,"26,992.54",Legal Aid Payment Higher Crime
MINISTRY OF JUSTICE,LEGAL AID AGENCY,24-Jun-15 ,Higher Crime,LEGAL AID FUND,WELLS BURCOMBE LLP,140551267,"42,620.84",Legal Aid Payment Higher Crime
MINISTRY OF JUSTICE,LEGAL AID AGENCY,10-Jun-15 ,Higher Crime,LEGAL AID FUND,TOM B WATSON,140307594,"30,100.56",Legal Aid Payment Higher Crime
MINISTRY OF JUSTICE,LEGAL AID AGENCY,24-Jun-15 ,Higher Crime,LEGAL AID FUND,THE JOHNSON PARTNERSHIP,140551703,"31,084.81",Legal Aid Payment Higher Crime
MINISTRY OF JUSTICE,LEGAL AID AGENCY,24-Jun-15 ,Higher Crime,LEGAL AID FUND,ZAFAR ALI,140515787,"67,169.56",Legal Aid Payment Higher Crime
MINISTRY OF JUSTICE,LEGAL AID AGENCY,03-Jun-15 ,Higher Crime,LEGAL AID FUND,KENNETH M BARROW & CO,140255587,"127,029.30",Legal Aid Payment Higher Crime
MINISTRY OF JUSTICE,LEGAL AID AGENCY,03-Jun-15 ,Civil Representation,LEGAL AID FUND,STILWELL & SINGLETON,139790547,"43,837.20",Legal Aid Payment Civil Representation
MINISTRY OF JUSTICE,LEGAL AID AGENCY,24-Jun-15 ,Civil Representation,LEGAL AID FUND,STERNBERG REED SOLICITORS,140507806,"27,186.84",Legal Aid Payment Civil Representation
MINISTRY OF JUSTICE,LEGAL AID AGENCY,17-Jun-15 ,Higher Crime,LEGAL AID FUND,BENJAMIN J MYERS QC,140466444,"58,775.95",Legal Aid Payment Higher Crime
MINISTRY OF JUSTICE,LEGAL AID AGENCY,03-Jun-15 ,Higher Crime,LEGAL AID FUND,DE MAIDS SOLICITORS & ADVOCATES,140292354,"65,397.12",Legal Aid Payment Higher Crime
MINISTRY OF JUSTICE,LEGAL AID AGENCY,03-Jun-15 ,Civil Representation,LEGAL AID FUND,LUCY E LEADER,140281684,"29,937.60",Legal Aid Payment Civil Representation
MINISTRY OF JUSTICE,LEGAL AID AGENCY,03-Jun-15 ,Higher Crime,LEGAL AID FUND,MORGAN BROWN CAHILL SOLICITORS,140292777,"116,008.49",Legal Aid Payment Higher Crime
MINISTRY OF JUSTICE,LEGAL AID AGENCY,10-Jun-15 ,Civil Representation,LEGAL AID FUND,DAVID H SOUTHEY QC,140368318,"42,976.95",Legal Aid Payment Civil Representation
MINISTRY OF JUSTICE,LEGAL AID AGENCY,03-Jun-15 ,Higher Crime,LEGAL AID FUND,RUSSELL-COOKE LLP,140292350,"36,789.65",Legal Aid Payment Higher Crime
MINISTRY OF JUSTICE,LEGAL AID AGENCY,24-Jun-15 ,Higher Crime,LEGAL AID FUND,FORBES SOLICITORS-ADVOCATE,140482969,"26,629.66",Legal Aid Payment Higher Crime
MINISTRY OF JUSTICE,LEGAL AID AGENCY,03-Jun-15 ,Civil Representation,LEGAL AID FUND,JANE CROSS QC,139573311,"32,683.50",Legal Aid Payment Civil Representation
MINISTRY OF JUSTICE,LEGAL AID AGENCY,24-Jun-15 ,Civil Representation,LEGAL AID FUND,HOGANS,140557419,"41,916.16",Legal Aid Payment Civil Representation
MINISTRY OF JUSTICE,LEGAL AID AGENCY,24-Jun-15 ,Higher Crime,LEGAL AID FUND,JOHN PERRIOR SIMMONS,140552400,"25,330.49",Legal Aid Payment Higher Crime
MINISTRY OF JUSTICE,LEGAL AID AGENCY,24-Jun-15 ,Higher Crime,LEGAL AID FUND,FMW LAW LTD,140560330,"67,137.98",Legal Aid Payment Higher Crime
MINISTRY OF JUSTICE,LEGAL AID AGENCY,10-Jun-15 ,Higher Crime,LEGAL AID FUND,K A SOLICITORS,140353755,"32,713.08",Legal Aid Payment Higher Crime
MINISTRY OF JUSTICE,LEGAL AID AGENCY,17-Jun-15 ,Higher Crime,LEGAL AID FUND,BOND JOSEPH,140423472,"90,981.77",Legal Aid Payment Higher Crime
MINISTRY OF JUSTICE,LEGAL AID AGENCY,10-Jun-15 ,Higher Crime,LEGAL AID FUND,ADAM V S KANE,140339483,"46,385.40",Legal Aid Payment Higher Crime
MINISTRY OF JUSTICE,LEGAL AID AGENCY,10-Jun-15 ,Civil Representation,LEGAL AID FUND,GAYNHAM KING & MELLOR,140389702,"37,932.46",Legal Aid Payment Civil Representation
MINISTRY OF JUSTICE,LEGAL AID AGENCY,24-Jun-15 ,Higher Crime,LEGAL AID FUND,WALTERS SOLICITORS,140551721,"45,393.28",Legal Aid Payment Higher Crime
MINISTRY OF JUSTICE,LEGAL AID AGENCY,17-Jun-15 ,Civil Representation,LEGAL AID FUND,RUSSELL-COOKE LLP,140391663,"29,760.28",Legal Aid Payment Civil Representation
MINISTRY OF JUSTICE,LEGAL AID AGENCY,10-Jun-15 ,Higher Crime,LEGAL AID FUND,MTC & CO SOLICITORS,140318350,"30,048.41",Legal Aid Payment Higher Crime
MINISTRY OF JUSTICE,LEGAL AID AGENCY,17-Jun-15 ,Higher Crime,LEGAL AID FUND,IAN C BRIDGE,140438042,"26,000.00",Legal Aid Payment Higher Crime
MINISTRY OF JUSTICE,LEGAL AID AGENCY,17-Jun-15 ,Civil Representation,LEGAL AID FUND,ROOTES & ALLIOTT,140391013,"39,603.60",Legal Aid Payment Civil Representation
MINISTRY OF JUSTICE,LEGAL AID AGENCY,03-Jun-15 ,Higher Crime,LEGAL AID FUND,HEDLEY SOLICITORS,140292066,"37,791.76",Legal Aid Payment Higher Crime
MINISTRY OF JUSTICE,LEGAL AID AGENCY,03-Jun-15 ,Civil Representation,LEGAL AID FUND,SIMON L BICKLER,140272843,"44,906.40",Legal Aid Payment Civil Representation
MINISTRY OF JUSTICE,LEGAL AID AGENCY,17-Jun-15 ,Civil Representation,LEGAL AID FUND,H JONATHAN FURNESS QC,140116021,"56,635.20",Legal Aid Payment Civil Representation
MINISTRY OF JUSTICE,LEGAL AID AGENCY,17-Jun-15 ,Higher Crime,LEGAL AID FUND,S ORLANDO F POWNALL QC,140412116,"56,857.33",Legal Aid Payment Higher Crime
MINISTRY OF JUSTICE,LEGAL AID AGENCY,17-Jun-15 ,Civil Representation,LEGAL AID FUND,LESTER MORRILL INC DAVIES GORE LOMAX,140424395,"46,908.05",Legal Aid Payment Civil Representation
MINISTRY OF JUSTICE,LEGAL AID AGENCY,24-Jun-15 ,Civil Representation,LEGAL AID FUND,CHURCHERS,140227927,"44,547.30",Legal Aid Payment Civil Representation
MINISTRY OF JUSTICE,LEGAL AID AGENCY,10-Jun-15 ,Higher Crime,LEGAL AID FUND,GOLDEN SOLICITORS,140340564,"64,431.38",Legal Aid Payment Higher Crime
MINISTRY OF JUSTICE,LEGAL AID AGENCY,10-Jun-15 ,Higher Crime,LEGAL AID FUND,HELEN M VALLEY,140381035,"30,966.50",Legal Aid Payment Higher Crime
MINISTRY OF JUSTICE,LEGAL AID AGENCY,24-Jun-15 ,Higher Crime,LEGAL AID FUND,MORGAN CULLEN BALL LTD-ADVOCATE,140552043,"36,012.43",Legal Aid Payment Higher Crime
MINISTRY OF JUSTICE,LEGAL AID AGENCY,24-Jun-15 ,Higher Crime,LEGAL AID FUND,STUART MILLER SOLICITORS LTD,140551605,"34,311.85",Legal Aid Payment Higher Crime
MINISTRY OF JUSTICE,LEGAL AID AGENCY,24-Jun-15 ,Higher Crime,LEGAL AID FUND,EDWARD FAIL BRADSHAW & WATERSON,140530324,"58,298.72",Legal Aid Payment Higher Crime
MINISTRY OF JUSTICE,LEGAL AID AGENCY,03-Jun-15 ,Higher Crime,LEGAL AID FUND,SAUNDERS SOLICITORS LTD-ADVOCATE,140291117,"40,433.28",Legal Aid Payment Higher Crime
MINISTRY OF JUSTICE,LEGAL AID AGENCY,03-Jun-15 ,Higher Crime,LEGAL AID FUND,THOMAS PRICE QC,140292740,"68,440.78",Legal Aid Payment Higher Crime
MINISTRY OF JUSTICE,LEGAL AID AGENCY,17-Jun-15 ,Civil Representation,LEGAL AID FUND,HMA SOLICITORS,140424685,"46,520.48",Legal Aid Payment Civil Representation
MINISTRY OF JUSTICE,LEGAL AID AGENCY,24-Jun-15 ,Civil Representation,LEGAL AID FUND,CHILD LAW PARTNERSHIP LTD,140555836,"30,062.71",Legal Aid Payment Civil Representation
MINISTRY OF JUSTICE,LEGAL AID AGENCY,03-Jun-15 ,Higher Crime,LEGAL AID FUND,TALBIR SINGH,140254206,"34,733.40",Legal Aid Payment Higher Crime
MINISTRY OF JUSTICE,LEGAL AID AGENCY,17-Jun-15 ,Civil Representation,LEGAL AID FUND,NEUMANS LLP,140406052,"30,000.00",Legal Aid Payment Civil Representation
MINISTRY OF JUSTICE,LEGAL AID AGENCY,17-Jun-15 ,Higher Crime,LEGAL AID FUND,BAILEY NICHOLSON GRAYSON,140467084,"31,019.99",Legal Aid Payment Higher Crime
MINISTRY OF JUSTICE,LEGAL AID AGENCY,03-Jun-15 ,Higher Crime,LEGAL AID FUND,FORBES SOLICITORS,140291946,"74,592.87",Legal Aid Payment Higher Crime
MINISTRY OF JUSTICE,LEGAL AID AGENCY,17-Jun-15 ,Civil Representation,LEGAL AID FUND,GAIL L FARRINGTON,139711959,"35,568.00",Legal Aid Payment Civil Representation
MINISTRY OF JUSTICE,LEGAL AID AGENCY,03-Jun-15 ,Higher Crime,LEGAL AID FUND,M B LAW LTD,140292293,"38,525.04",Legal Aid Payment Higher Crime
MINISTRY OF JUSTICE,LEGAL AID AGENCY,17-Jun-15 ,Civil Representation,LEGAL AID FUND,LAWRENCE & CO,140472136,"41,417.29",Legal Aid Payment Civil Representation
MINISTRY OF JUSTICE,LEGAL AID AGENCY,03-Jun-15 ,Higher Crime,LEGAL AID FUND,TAYLOR HALDANE BARLEX LLP,140224149,"65,936.88",Legal Aid Payment Higher Crime
MINISTRY OF JUSTICE,LEGAL AID AGENCY,17-Jun-15 ,Civil Representation,LEGAL AID FUND,MELANIE J JOHNSON,140472132,"27,086.40",Legal Aid Payment Civil Representation
MINISTRY OF JUSTICE,LEGAL AID AGENCY,03-Jun-15 ,Higher Crime,LEGAL AID FUND,MAIDMENTS LTD,140292843,"66,093.76",Legal Aid Payment Higher Crime
MINISTRY OF JUSTICE,LEGAL AID AGENCY,10-Jun-15 ,Higher Crime,LEGAL AID FUND,EVANS BISSETT SOLICITORS,140308388,"54,024.68",Legal Aid Payment Higher Crime
MINISTRY OF JUSTICE,LEGAL AID AGENCY,24-Jun-15 ,Civil Representation,LEGAL AID FUND,RUSSELL-COOKE LLP,140486302,"33,493.04",Legal Aid Payment Civil Representation
MINISTRY OF JUSTICE,LEGAL AID AGENCY,17-Jun-15 ,Higher Crime,LEGAL AID FUND,RUSSELL-COOKE LLP,140471572,"99,156.45",Legal Aid Payment Higher Crime
MINISTRY OF JUSTICE,LEGAL AID AGENCY,10-Jun-15 ,Higher Crime,LEGAL AID FUND,RICHARD M LITTLER,140380788,"27,434.64",Legal Aid Payment Higher Crime
MINISTRY OF JUSTICE,LEGAL AID AGENCY,17-Jun-15 ,Higher Crime,LEGAL AID FUND,DE MAIDS SOLICITORS & ADVOCATES,140423540,"89,975.11",Legal Aid Payment Higher Crime
MINISTRY OF JUSTICE,LEGAL AID AGENCY,17-Jun-15 ,Higher Crime,LEGAL AID FUND,SAMANTHA L COHEN,140475297,"26,839.99",Legal Aid Payment Higher Crime
MINISTRY OF JUSTICE,LEGAL AID AGENCY,10-Jun-15 ,Higher Crime,LEGAL AID FUND,FRANCIS G H D FITZGIBBON QC,140308520,"36,151.61",Legal Aid Payment Higher Crime
MINISTRY OF JUSTICE,LEGAL AID AGENCY,17-Jun-15 ,Higher Crime,LEGAL AID FUND,QUALITYSOLICITORS MIRZA,140422568,"26,641.79",Legal Aid Payment Higher Crime
MINISTRY OF JUSTICE,LEGAL AID AGENCY,24-Jun-15 ,Higher Crime,LEGAL AID FUND,ADVICE WISE SOLICITORS,140482271,"54,357.46",Legal Aid Payment Higher Crime
MINISTRY OF JUSTICE,LEGAL AID AGENCY,24-Jun-15 ,Higher Crime,LEGAL AID FUND,MPR SOLICITORS LLP,140552016,"32,713.08",Legal Aid Payment Higher Crime
MINISTRY OF JUSTICE,LEGAL AID AGENCY,03-Jun-15 ,Civil Representation,LEGAL AID FUND,TRAYMANS LLP SOLICITORS,140230197,"25,830.76",Legal Aid Payment Civil Representation
MINISTRY OF JUSTICE,LEGAL AID AGENCY,10-Jun-15 ,Higher Crime,LEGAL AID FUND,DASS SOLICITORS,140320117,"25,336.10",Legal Aid Payment Higher Crime
MINISTRY OF JUSTICE,LEGAL AID AGENCY,03-Jun-15 ,Higher Crime,LEGAL AID FUND,LAWTONS,140292045,"81,442.83",Legal Aid Payment Higher Crime
MINISTRY OF JUSTICE,LEGAL AID AGENCY,10-Jun-15 ,Higher Crime,LEGAL AID FUND,GUNEY CLARK & RYAN LTD CO,140354066,"45,066.78",Legal Aid Payment Higher Crime
MINISTRY OF JUSTICE,LEGAL AID AGENCY,17-Jun-15 ,Legal Help,LEGAL AID FUND,DIRECT HELP & ADVICE LTD,140475968,"30,392.76",Legal Aid Payment Legal Help
MINISTRY OF JUSTICE,LEGAL AID AGENCY,17-Jun-15 ,Higher Crime,LEGAL AID FUND,PURCELL PARKER LTD-ADVOCATE,140412137,"27,520.25",Legal Aid Payment Higher Crime
MINISTRY OF JUSTICE,LEGAL AID AGENCY,17-Jun-15 ,Higher Crime,LEGAL AID FUND,DALLAS & RICHARDSON SOLICITORS,140397111,"42,866.40",Legal Aid Payment Higher Crime
MINISTRY OF JUSTICE,LEGAL AID AGENCY,24-Jun-15 ,Civil Representation,LEGAL AID FUND,CHILD LAW PARTNERSHIP LTD,140558990,"32,650.88",Legal Aid Payment Civil Representation
MINISTRY OF JUSTICE,LEGAL AID AGENCY,24-Jun-15 ,Higher Crime,LEGAL AID FUND,DAVID C L ETHERINGTON QC,140498024,"69,302.74",Legal Aid Payment Higher Crime
MINISTRY OF JUSTICE,LEGAL AID AGENCY,24-Jun-15 ,Higher Crime,LEGAL AID FUND,RICHARD H CHRISTIE QC,140531353,"65,182.36",Legal Aid Payment Higher Crime
MINISTRY OF JUSTICE,LEGAL AID AGENCY,03-Jun-15 ,Higher Crime,LEGAL AID FUND,FREEMANS [0B767W]-ADVOCATE,140255109,"30,702.82",Legal Aid Payment Higher Crime
MINISTRY OF JUSTICE,LEGAL AID AGENCY,26-Jun-15 ,Civil Representation,LEGAL AID FUND,DMA LAW,100000047960RECLB216,"27,385.00",Legal Aid Payment Civil Representation
MINISTRY OF JUSTICE,LEGAL AID AGENCY,10-Jun-15 ,Civil Representation,LEGAL AID FUND,BERRY & LAMBERTS SOLICITORS,140311565,"26,949.27",Legal Aid Payment Civil Representation
MINISTRY OF JUSTICE,LEGAL AID AGENCY,17-Jun-15 ,Civil Representation,LEGAL AID FUND,REDFEARNS SOLICITORS LLP,140401765,"39,421.01",Legal Aid Payment Civil Representation
MINISTRY OF JUSTICE,LEGAL AID AGENCY,03-Jun-15 ,Higher Crime,LEGAL AID FUND,HARRIS SOLICITORS,140292670,"107,574.07",Legal Aid Payment Higher Crime
MINISTRY OF JUSTICE,LEGAL AID AGENCY,24-Jun-15 ,Civil Representation,LEGAL AID FUND,MARTIN MURRAY & ASSOCIATES,140556168,"36,343.31",Legal Aid Payment Civil Representation
MINISTRY OF JUSTICE,LEGAL AID AGENCY,10-Jun-15 ,Higher Crime,LEGAL AID FUND,SUKHDEV GARCHA,140354433,"27,559.37",Legal Aid Payment Higher Crime
MINISTRY OF JUSTICE,LEGAL AID AGENCY,03-Jun-15 ,Higher Crime,LEGAL AID FUND,HENRY'S SOLICITORS LTD,140239452,"89,975.11",Legal Aid Payment Higher Crime
MINISTRY OF JUSTICE,LEGAL AID AGENCY,03-Jun-15 ,Civil Representation,LEGAL AID FUND,SIMON ROWBOTHAM,139573351,"27,648.00",Legal Aid Payment Civil Representation
MINISTRY OF JUSTICE,LEGAL AID AGENCY,17-Jun-15 ,Higher Crime,LEGAL AID FUND,HODGE JONES & ALLEN LLP,140467367,"41,939.36",Legal Aid Payment Higher Crime
MINISTRY OF JUSTICE,LEGAL AID AGENCY,10-Jun-15 ,Higher Crime,LEGAL AID FUND,SONN MACMILLAN WALKER LTD,140353377,"28,031.77",Legal Aid Payment Higher Crime
MINISTRY OF JUSTICE,LEGAL AID AGENCY,17-Jun-15 ,Civil Representation,LEGAL AID FUND,DARREN F HOWE,140342818,"50,762.75",Legal Aid Payment Civil Representation
MINISTRY OF JUSTICE,LEGAL AID AGENCY,10-Jun-15 ,Higher Crime,LEGAL AID FUND,TIMOTHY J MOLONEY QC,140340476,"27,669.50",Legal Aid Payment Higher Crime
MINISTRY OF JUSTICE,LEGAL AID AGENCY,03-Jun-15 ,Higher Crime,LEGAL AID FUND,CHIVERS SOLICITORS,140292655,"105,857.75",Legal Aid Payment Higher Crime
MINISTRY OF JUSTICE,LEGAL AID AGENCY,24-Jun-15 ,Higher Crime,LEGAL AID FUND,SHAIKH AYUB SOLICITORS,140498478,"27,000.00",Legal Aid Payment Higher Crime
MINISTRY OF JUSTICE,LEGAL AID AGENCY,24-Jun-15 ,Higher Crime,LEGAL AID FUND,DAVID PHILLIPS & PARTNERS,140551957,"54,497.60",Legal Aid Payment Higher Crime
MINISTRY OF JUSTICE,LEGAL AID AGENCY,03-Jun-15 ,Higher Crime,LEGAL AID FUND,CANTARIS LOCKE SOLICITORS,140291089,"65,228.95",Legal Aid Payment Higher Crime
MINISTRY OF JUSTICE,LEGAL AID AGENCY,17-Jun-15 ,Civil Representation,LEGAL AID FUND,CHILD LAW PARTNERSHIP LTD,140473505,"29,782.81",Legal Aid Payment Civil Representation
MINISTRY OF JUSTICE,LEGAL AID AGENCY,10-Jun-15 ,Higher Crime,LEGAL AID FUND,FEDON P KAZANTZIS,140308174,"35,673.91",Legal Aid Payment Higher Crime
MINISTRY OF JUSTICE,LEGAL AID AGENCY,03-Jun-15 ,Higher Crime,LEGAL AID FUND,RUSSELL D T DAVIES,140269463,"25,307.28",Legal Aid Payment Higher Crime
MINISTRY OF JUSTICE,LEGAL AID AGENCY,10-Jun-15 ,Higher Crime,LEGAL AID FUND,KANGS SOLICITORS,140353315,"54,000.72",Legal Aid Payment Higher Crime
MINISTRY OF JUSTICE,LEGAL AID AGENCY,03-Jun-15 ,Civil Representation,LEGAL AID FUND,M JAYNE PYE,140211946,"57,594.00",Legal Aid Payment Civil Representation
MINISTRY OF JUSTICE,LEGAL AID AGENCY,10-Jun-15 ,Civil Representation,LEGAL AID FUND,TEMPERLEY TAYLOR LLP,140312205,"27,770.29",Legal Aid Payment Civil Representation
MINISTRY OF JUSTICE,LEGAL AID AGENCY,24-Jun-15 ,Higher Crime,LEGAL AID FUND,EVANS QUARTERMAINE SOLICITORS,140550786,"43,028.80",Legal Aid Payment Higher Crime
MINISTRY OF JUSTICE,LEGAL AID AGENCY,17-Jun-15 ,Higher Crime,LEGAL AID FUND,JSP LAW LTD,140397883,"25,999.45",Legal Aid Payment Higher Crime
MINISTRY OF JUSTICE,LEGAL AID AGENCY,24-Jun-15 ,Civil Representation,LEGAL AID FUND,HARRIS TEMPERLEY LLP,140519929,"32,028.64",Legal Aid Payment Civil Representation
MINISTRY OF JUSTICE,LEGAL AID AGENCY,03-Jun-15 ,Higher Crime,LEGAL AID FUND,HARRIS SOLICITORS,140292381,"150,811.03",Legal Aid Payment Higher Crime
MINISTRY OF JUSTICE,LEGAL AID AGENCY,24-Jun-15 ,Higher Crime,LEGAL AID FUND,HENRY'S SOLICITORS LTD,140551429,"44,987.57",Legal Aid Payment Higher Crime
MINISTRY OF JUSTICE,LEGAL AID AGENCY,03-Jun-15 ,Higher Crime,LEGAL AID FUND,O'KEEFFE SOLICITORS,140255706,"89,851.01",Legal Aid Payment Higher Crime
MINISTRY OF JUSTICE,LEGAL AID AGENCY,10-Jun-15 ,Civil Representation,LEGAL AID FUND,DAWSON CORNWELL,140357769,"43,217.99",Legal Aid Payment Civil Representation
MINISTRY OF JUSTICE,LEGAL AID AGENCY,24-Jun-15 ,Legal Help,LEGAL AID FUND,THE COMMUNITY LAW PARTNERSHIP LTD,140504827,"29,707.56",Legal Aid Payment Legal Help
MINISTRY OF JUSTICE,LEGAL AID AGENCY,10-Jun-15 ,Higher Crime,LEGAL AID FUND,PAUL JARVIS,140340636,"35,939.11",Legal Aid Payment Higher Crime
MINISTRY OF JUSTICE,LEGAL AID AGENCY,10-Jun-15 ,Higher Crime,LEGAL AID FUND,PENFOLD & MCPHERSON,140308252,"67,356.71",Legal Aid Payment Higher Crime
MINISTRY OF JUSTICE,LEGAL AID AGENCY,24-Jun-15 ,Higher Crime,LEGAL AID FUND,JOHN G COOPER QC,140552410,"28,466.78",Legal Aid Payment Higher Crime
MINISTRY OF JUSTICE,LEGAL AID AGENCY,17-Jun-15 ,Higher Crime,LEGAL AID FUND,DEXTER HENRY & CO,140467305,"75,971.60",Legal Aid Payment Higher Crime
MINISTRY OF JUSTICE,LEGAL AID AGENCY,10-Jun-15 ,Higher Crime,LEGAL AID FUND,JOHN DELANEY & CO SOLICITORS,140340814,"83,225.74",Legal Aid Payment Higher Crime
MINISTRY OF JUSTICE,LEGAL AID AGENCY,03-Jun-15 ,Civil Representation,LEGAL AID FUND,GABRIEL BASIL SOLICITORS,140282144,"29,536.19",Legal Aid Payment Civil Representation
MINISTRY OF JUSTICE,LEGAL AID AGENCY,24-Jun-15 ,Higher Crime,LEGAL AID FUND,KEPPE ROFER,140552082,"70,846.88",Legal Aid Payment Higher Crime
MINISTRY OF JUSTICE,LEGAL AID AGENCY,24-Jun-15 ,Higher Crime,LEGAL AID FUND,ELITE SOLICITORS,140550980,"39,283.67",Legal Aid Payment Higher Crime
MINISTRY OF JUSTICE,LEGAL AID AGENCY,10-Jun-15 ,Civil Representation,LEGAL AID FUND,DIANA LESSING,140279994,"49,032.00",Legal Aid Payment Civil Representation
MINISTRY OF JUSTICE,LEGAL AID AGENCY,24-Jun-15 ,Higher Crime,LEGAL AID FUND,JOSEPH HILL & CO,140550777,"26,795.29",Legal Aid Payment Higher Crime
MINISTRY OF JUSTICE,LEGAL AID AGENCY,24-Jun-15 ,Civil Representation,LEGAL AID FUND,GOODMAN RAY,140555463,"37,166.90",Legal Aid Payment Civil Representation
MINISTRY OF JUSTICE,LEGAL AID AGENCY,03-Jun-15 ,Higher Crime,LEGAL AID FUND,CUNNINGHAMS LYTHGOE CAPLIN LTD,140292518,"99,482.71",Legal Aid Payment Higher Crime
MINISTRY OF JUSTICE,LEGAL AID AGENCY,10-Jun-15 ,Civil Representation,LEGAL AID FUND,BEVIRS,140384290,"25,577.82",Legal Aid Payment Civil Representation
MINISTRY OF JUSTICE,LEGAL AID AGENCY,10-Jun-15 ,Civil Representation,LEGAL AID FUND,TERRELLS LLP,140343492,"29,573.12",Legal Aid Payment Civil Representation
MINISTRY OF JUSTICE,LEGAL AID AGENCY,10-Jun-15 ,Civil Representation,LEGAL AID FUND,RAMSDENS SOLICITORS LLP,140370800,"29,570.66",Legal Aid Payment Civil Representation
MINISTRY OF JUSTICE,LEGAL AID AGENCY,24-Jun-15 ,Civil Representation,LEGAL AID FUND,HOWELLS LLP,140560139,"25,969.08",Legal Aid Payment Civil Representation
MINISTRY OF JUSTICE,LEGAL AID AGENCY,17-Jun-15 ,Civil Representation,LEGAL AID FUND,IAN WISE QC,140357037,"29,088.00",Legal Aid Payment Civil Representation
MINISTRY OF JUSTICE,LEGAL AID AGENCY,03-Jun-15 ,Higher Crime,LEGAL AID FUND,ALBIN & CO LTD,140254377,"37,392.96",Legal Aid Payment Higher Crime
MINISTRY OF JUSTICE,LEGAL AID AGENCY,03-Jun-15 ,Civil Representation,LEGAL AID FUND,MATTHEW A HEYWOOD,139957902,"25,620.19",Legal Aid Payment Civil Representation
MINISTRY OF JUSTICE,LEGAL AID AGENCY,24-Jun-15 ,Higher Crime,LEGAL AID FUND,IAN M STERN QC,140516371,"39,219.07",Legal Aid Payment Higher Crime
MINISTRY OF JUSTICE,LEGAL AID AGENCY,17-Jun-15 ,Higher Crime,LEGAL AID FUND,PAUL K LEWIS QC,140397189,"59,814.76",Legal Aid Payment Higher Crime
MINISTRY OF JUSTICE,LEGAL AID AGENCY,03-Jun-15 ,Higher Crime,LEGAL AID FUND,MIDDLEWEEKS,140292608,"116,008.49",Legal Aid Payment Higher Crime
MINISTRY OF JUSTICE,LEGAL AID AGENCY,03-Jun-15 ,Higher Crime,LEGAL AID FUND,LAM & MEERABUX SOLICITORS,140292824,"45,674.04",Legal Aid Payment Higher Crime
MINISTRY OF JUSTICE,LEGAL AID AGENCY,03-Jun-15 ,Higher Crime,LEGAL AID FUND,COURTENAY GRIFFITHS QC,140269296,"49,517.32",Legal Aid Payment Higher Crime
MINISTRY OF JUSTICE,LEGAL AID AGENCY,10-Jun-15 ,Civil Representation,LEGAL AID FUND,HORNBY & LEVY,140358491,"25,828.27",Legal Aid Payment Civil Representation
MINISTRY OF JUSTICE,LEGAL AID AGENCY,17-Jun-15 ,Higher Crime,LEGAL AID FUND,HENNESSY & HAMMUDI,140454780,"49,020.43",Legal Aid Payment Higher Crime
MINISTRY OF JUSTICE,LEGAL AID AGENCY,17-Jun-15 ,Higher Crime,LEGAL AID FUND,OLLIERS,140465644,"37,296.80",Legal Aid Payment Higher Crime
MINISTRY OF JUSTICE,LEGAL AID AGENCY,17-Jun-15 ,Higher Crime,LEGAL AID FUND,HOWELL HYLTON LTD,140457367,"39,956.80",Legal Aid Payment Higher Crime
MINISTRY OF JUSTICE,LEGAL AID AGENCY,03-Jun-15 ,Higher Crime,LEGAL AID FUND,BIVONAS LLP,140292355,"116,008.49",Legal Aid Payment Higher Crime
MINISTRY OF JUSTICE,LEGAL AID AGENCY,03-Jun-15 ,Higher Crime,LEGAL AID FUND,MARK JONES & PARTNERS,140224431,"89,975.11",Legal Aid Payment Higher Crime
MINISTRY OF JUSTICE,LEGAL AID AGENCY,24-Jun-15 ,Civil Representation,LEGAL AID FUND,JEREMY P WESTON,140486752,"28,447.20",Legal Aid Payment Civil Representation
MINISTRY OF JUSTICE,LEGAL AID AGENCY,24-Jun-15 ,Higher Crime,LEGAL AID FUND,NOBLE SOLICITORS,140482415,"30,285.50",Legal Aid Payment Higher Crime
MINISTRY OF JUSTICE,LEGAL AID AGENCY,10-Jun-15 ,Higher Crime,LEGAL AID FUND,STOKOE PARTNERSHIP,140354536,"89,975.11",Legal Aid Payment Higher Crime
MINISTRY OF JUSTICE,LEGAL AID AGENCY,17-Jun-15 ,Higher Crime,LEGAL AID FUND,EBR ATTRIDGE LLP,140466948,"75,135.29",Legal Aid Payment Higher Crime
MINISTRY OF JUSTICE,LEGAL AID AGENCY,24-Jun-15 ,Higher Crime,LEGAL AID FUND,CUNNINGHAMS LYTHGOE CAPLIN LTD,140483538,"26,894.58",Legal Aid Payment Higher Crime
MINISTRY OF JUSTICE,LEGAL AID AGENCY,10-Jun-15 ,Civil Representation,LEGAL AID FUND,A & N CARE SOLICITORS,140313796,"30,236.65",Legal Aid Payment Civil Representation
MINISTRY OF JUSTICE,LEGAL AID AGENCY,24-Jun-15 ,Higher Crime,LEGAL AID FUND,COBLEYS LLP,140551630,"70,200.77",Legal Aid Payment Higher Crime
MINISTRY OF JUSTICE,LEGAL AID AGENCY,24-Jun-15 ,Higher Crime,LEGAL AID FUND,ABIGAIL J BRIGHT,140482907,"28,081.02",Legal Aid Payment Higher Crime
MINISTRY OF JUSTICE,LEGAL AID AGENCY,10-Jun-15 ,Higher Crime,LEGAL AID FUND,RICK J HOLLAND,140318107,"25,469.88",Legal Aid Payment Higher Crime
MINISTRY OF JUSTICE,LEGAL AID AGENCY,24-Jun-15 ,Higher Crime,LEGAL AID FUND,BERNARD RICHMOND QC,140498139,"38,893.28",Legal Aid Payment Higher Crime
MINISTRY OF JUSTICE,LEGAL AID AGENCY,10-Jun-15 ,Higher Crime,LEGAL AID FUND,LIBERTY LAW SOLICITORS,140340790,"28,314.44",Legal Aid Payment Higher Crime
MINISTRY OF JUSTICE,LEGAL AID AGENCY,17-Jun-15 ,Civil Representation,LEGAL AID FUND,KATHRYN M KOROL,140459829,"48,022.20",Legal Aid Payment Civil Representation
MINISTRY OF JUSTICE,LEGAL AID AGENCY,03-Jun-15 ,Civil Representation,LEGAL AID FUND,JAMES E PICKEN,139837434,"28,771.20",Legal Aid Payment Civil Representation
MINISTRY OF JUSTICE,LEGAL AID AGENCY,24-Jun-15 ,Higher Crime,LEGAL AID FUND,MURRAYS PARTNERSHIP,140531485,"47,679.38",Legal Aid Payment Higher Crime
MINISTRY OF JUSTICE,LEGAL AID AGENCY,17-Jun-15 ,Higher Crime,LEGAL AID FUND,MARK G MILLIKEN-SMITH,140397155,"67,430.53",Legal Aid Payment Higher Crime
MINISTRY OF JUSTICE,LEGAL AID AGENCY,10-Jun-15 ,Civil Representation,LEGAL AID FUND,TAMMI E BANNON,140309951,"48,470.40",Legal Aid Payment Civil Representation
MINISTRY OF JUSTICE,LEGAL AID AGENCY,10-Jun-15 ,Higher Crime,LEGAL AID FUND,PETER S L JOYCE QC,140307732,"36,650.65",Legal Aid Payment Higher Crime
MINISTRY OF JUSTICE,LEGAL AID AGENCY,24-Jun-15 ,Higher Crime,LEGAL AID FUND,JENNIFER M P DEMPSTER,140551021,"35,673.91",Legal Aid Payment Higher Crime
MINISTRY OF JUSTICE,LEGAL AID AGENCY,17-Jun-15 ,Higher Crime,LEGAL AID FUND,EBR ATTRIDGE LLP,140465669,"41,115.66",Legal Aid Payment Higher Crime
MINISTRY OF JUSTICE,LEGAL AID AGENCY,24-Jun-15 ,Higher Crime,LEGAL AID FUND,CHAUDHURY SOLICITORS LTD-ADVOCATE,140551707,"35,156.70",Legal Aid Payment Higher Crime
MINISTRY OF JUSTICE,LEGAL AID AGENCY,24-Jun-15 ,Civil Representation,LEGAL AID FUND,SAMANTHA L KING,140507815,"37,932.00",Legal Aid Payment Civil Representation
MINISTRY OF JUSTICE,LEGAL AID AGENCY,24-Jun-15 ,Higher Crime,LEGAL AID FUND,SIMON E PARRY,140482898,"28,072.34",Legal Aid Payment Higher Crime
MINISTRY OF JUSTICE,LEGAL AID AGENCY,17-Jun-15 ,Civil Representation,LEGAL AID FUND,FPH LAW SOLICITORS,140434546,"25,724.99",Legal Aid Payment Civil Representation
MINISTRY OF JUSTICE,LEGAL AID AGENCY,24-Jun-15 ,Civil Representation,LEGAL AID FUND,PAUL M STOREY QC,140524346,"59,576.36",Legal Aid Payment Civil Representation
MINISTRY OF JUSTICE,LEGAL AID AGENCY,10-Jun-15 ,Higher Crime,LEGAL AID FUND,KEMPS,140317916,"26,958.92",Legal Aid Payment Higher Crime
MINISTRY OF JUSTICE,LEGAL AID AGENCY,17-Jun-15 ,Higher Crime,LEGAL AID FUND,POTTER DERBY SOLICITORS,140423664,"78,406.47",Legal Aid Payment Higher Crime
MINISTRY OF JUSTICE,LEGAL AID AGENCY,24-Jun-15 ,Civil Representation,LEGAL AID FUND,SILVER FITZGERALD,140543895,"40,103.06",Legal Aid Payment Civil Representation
MINISTRY OF JUSTICE,LEGAL AID AGENCY,03-Jun-15 ,Higher Crime,LEGAL AID FUND,H P GOWER SOLICITORS,140239625,"89,975.11",Legal Aid Payment Higher Crime
MINISTRY OF JUSTICE,LEGAL AID AGENCY,10-Jun-15 ,Civil Representation,LEGAL AID FUND,REENA GHAI SOLICITOR LLB(HONS),3000000268810004,"26,756.14",Legal Aid Payment Civil Representation
MINISTRY OF JUSTICE,LEGAL AID AGENCY,17-Jun-15 ,Civil Representation,LEGAL AID FUND,LUCY E SOWDEN,140424397,"31,363.20",Legal Aid Payment Civil Representation
MINISTRY OF JUSTICE,LEGAL AID AGENCY,03-Jun-15 ,Higher Crime,LEGAL AID FUND,MORDI & CO,140292345,"40,479.48",Legal Aid Payment Higher Crime
MINISTRY OF JUSTICE,LEGAL AID AGENCY,10-Jun-15 ,Higher Crime,LEGAL AID FUND,STEPHENSONS SOLICITORS LLP,140381606,"29,664.55",Legal Aid Payment Higher Crime
MINISTRY OF JUSTICE,LEGAL AID AGENCY,03-Jun-15 ,Higher Crime,LEGAL AID FUND,KENNETH M BARROW & CO,140232145,"126,101.33",Legal Aid Payment Higher Crime
MINISTRY OF JUSTICE,LEGAL AID AGENCY,24-Jun-15 ,Higher Crime,LEGAL AID FUND,OLLIERS,140498667,"33,230.82",Legal Aid Payment Higher Crime
MINISTRY OF JUSTICE,LEGAL AID AGENCY,10-Jun-15 ,Civil Representation,LEGAL AID FUND,FIONA GRIFFIN,140313133,"33,242.40",Legal Aid Payment Civil Representation
MINISTRY OF JUSTICE,LEGAL AID AGENCY,24-Jun-15 ,Higher Crime,LEGAL AID FUND,CHAUDHURY SOLICITORS LTD,140550784,"30,048.41",Legal Aid Payment Higher Crime
MINISTRY OF JUSTICE,LEGAL AID AGENCY,10-Jun-15 ,Higher Crime,LEGAL AID FUND,MICHAEL GOMULKA QC,140318237,"39,619.20",Legal Aid Payment Higher Crime
MINISTRY OF JUSTICE,LEGAL AID AGENCY,03-Jun-15 ,Higher Crime,LEGAL AID FUND,POTTER DERBY SOLICITORS,140292464,"89,975.11",Legal Aid Payment Higher Crime
MINISTRY OF JUSTICE,LEGAL AID AGENCY,24-Jun-15 ,Higher Crime,LEGAL AID FUND,ESN SOLICITORS,140498640,"55,432.96",Legal Aid Payment Higher Crime
MINISTRY OF JUSTICE,LEGAL AID AGENCY,17-Jun-15 ,Legal Help,LEGAL AID FUND,SHELTER.,140477264,"35,718.24",Legal Aid Payment Legal Help
MINISTRY OF JUSTICE,LEGAL AID AGENCY,03-Jun-15 ,Higher Crime,LEGAL AID FUND,CHOPRA & GILL SOLICITORS,140292792,"116,008.49",Legal Aid Payment Higher Crime
MINISTRY OF JUSTICE,LEGAL AID AGENCY,17-Jun-15 ,Civil Representation,LEGAL AID FUND,FREETHS LLP,140446628,"31,658.91",Legal Aid Payment Civil Representation
MINISTRY OF JUSTICE,LEGAL AID AGENCY,03-Jun-15 ,Higher Crime,LEGAL AID FUND,KANGS SOLICITORS,140292239,"26,864.11",Legal Aid Payment Higher Crime
MINISTRY OF JUSTICE,LEGAL AID AGENCY,10-Jun-15 ,Civil Representation,LEGAL AID FUND,JOHN O'SULLIVAN,3000000081490009,"40,024.80",Legal Aid Payment Civil Representation
MINISTRY OF JUSTICE,LEGAL AID AGENCY,24-Jun-15 ,Higher Crime,LEGAL AID FUND,OWEN LAWTON,140551999,"55,241.47",Legal Aid Payment Higher Crime
MINISTRY OF JUSTICE,LEGAL AID AGENCY,15-Jun-15 ,Civil Representation,LEGAL AID FUND,ELIZABETH ADDICOTT,Ledger Transfer Adjustment 801,"61,210.31",Legal Aid Payment Civil Representation
MINISTRY OF JUSTICE,LEGAL AID AGENCY,10-Jun-15 ,Civil Representation,LEGAL AID FUND,MAKIN DIXON SOLICITORS LTD,140279972,"57,954.16",Legal Aid Payment Civil Representation
MINISTRY OF JUSTICE,LEGAL AID AGENCY,03-Jun-15 ,Civil Representation,LEGAL AID FUND,HARDINGTON HOGG,140211429,"36,346.40",Legal Aid Payment Civil Representation
MINISTRY OF JUSTICE,LEGAL AID AGENCY,17-Jun-15 ,Higher Crime,LEGAL AID FUND,JOHN A G STOTON,140397346,"31,569.74",Legal Aid Payment Higher Crime
MINISTRY OF JUSTICE,LEGAL AID AGENCY,24-Jun-15 ,Higher Crime,LEGAL AID FUND,MAIDMENTS LTD,140516847,"38,093.41",Legal Aid Payment Higher Crime
MINISTRY OF JUSTICE,LEGAL AID AGENCY,03-Jun-15 ,Higher Crime,LEGAL AID FUND,LESLIE FRANKS SOLICITORS,140254940,"28,041.12",Legal Aid Payment Higher Crime
MINISTRY OF JUSTICE,LEGAL AID AGENCY,17-Jun-15 ,Civil Representation,LEGAL AID FUND,HOPKIN MURRAY BESKINE LTD,140357024,"38,436.13",Legal Aid Payment Civil Representation
MINISTRY OF JUSTICE,LEGAL AID AGENCY,17-Jun-15 ,Higher Crime,LEGAL AID FUND,MCCORMACKS LAW,140396743,"65,936.88",Legal Aid Payment Higher Crime
MINISTRY OF JUSTICE,LEGAL AID AGENCY,17-Jun-15 ,Higher Crime,LEGAL AID FUND,CHAUDHURY SOLICITORS LTD,140412625,"38,961.23",Legal Aid Payment Higher Crime
MINISTRY OF JUSTICE,LEGAL AID AGENCY,24-Jun-15 ,Higher Crime,LEGAL AID FUND,BEYNON & CO,140497458,"32,720.92",Legal Aid Payment Higher Crime
MINISTRY OF JUSTICE,LEGAL AID AGENCY,17-Jun-15 ,Civil Representation,LEGAL AID FUND,SWITALSKI'S LTD,140424416,"78,666.99",Legal Aid Payment Civil Representation
MINISTRY OF JUSTICE,LEGAL AID AGENCY,17-Jun-15 ,Higher Crime,LEGAL AID FUND,MARY MONSON SOLICITORS,140396732,"54,357.46",Legal Aid Payment Higher Crime
MINISTRY OF JUSTICE,LEGAL AID AGENCY,03-Jun-15 ,Higher Crime,LEGAL AID FUND,KINGSLEY NAPLEY LLP,140260137,"55,413.24",Legal Aid Payment Higher Crime
MINISTRY OF JUSTICE,LEGAL AID AGENCY,24-Jun-15 ,Higher Crime,LEGAL AID FUND,TIMOTHY A FORTE,140551068,"29,998.15",Legal Aid Payment Higher Crime
MINISTRY OF JUSTICE,LEGAL AID AGENCY,17-Jun-15 ,Civil Representation,LEGAL AID FUND,DODDS SOLICITORS LLP,140345859,"32,352.85",Legal Aid Payment Civil Representation
MINISTRY OF JUSTICE,LEGAL AID AGENCY,17-Jun-15 ,Higher Crime,LEGAL AID FUND,BARK & CO,140467321,"69,375.65",Legal Aid Payment Higher Crime
MINISTRY OF JUSTICE,LEGAL AID AGENCY,10-Jun-15 ,Higher Crime,LEGAL AID FUND,JOSEPH HILL & CO,140319129,"58,652.24",Legal Aid Payment Higher Crime
MINISTRY OF JUSTICE,LEGAL AID AGENCY,10-Jun-15 ,Higher Crime,LEGAL AID FUND,OPUS LAW,140374423,"25,592.54",Legal Aid Payment Higher Crime
MINISTRY OF JUSTICE,LEGAL AID AGENCY,03-Jun-15 ,Higher Crime,LEGAL AID FUND,BLACKFORDS LLP,140292693,"98,602.86",Legal Aid Payment Higher Crime
MINISTRY OF JUSTICE,LEGAL AID AGENCY,17-Jun-15 ,Higher Crime,LEGAL AID FUND,RUSSELL-COOKE LLP,140471580,"57,244.91",Legal Aid Payment Higher Crime
MINISTRY OF JUSTICE,LEGAL AID AGENCY,10-Jun-15 ,Civil Representation,LEGAL AID FUND,AVERY NAYLOR LTD,140314915,"28,734.41",Legal Aid Payment Civil Representation
MINISTRY OF JUSTICE,LEGAL AID AGENCY,24-Jun-15 ,Higher Crime,LEGAL AID FUND,"OWEN & SHARPE, SOLICITORS",140550989,"42,951.48",Legal Aid Payment Higher Crime
MINISTRY OF JUSTICE,LEGAL AID AGENCY,24-Jun-15 ,Civil Representation,LEGAL AID FUND,HOWELLS LLP,140322848,"25,969.08",Legal Aid Payment Civil Representation
MINISTRY OF JUSTICE,LEGAL AID AGENCY,03-Jun-15 ,Civil Representation,LEGAL AID FUND,AVERY NAYLOR LTD,140281665,"36,043.04",Legal Aid Payment Civil Representation
MINISTRY OF JUSTICE,LEGAL AID AGENCY,24-Jun-15 ,Civil Representation,LEGAL AID FUND,HOGANS,140546587,"25,276.60",Legal Aid Payment Civil Representation
MINISTRY OF JUSTICE,LEGAL AID AGENCY,10-Jun-15 ,Higher Crime,LEGAL AID FUND,MICHAEL ALEXANDER & CO,140354519,"60,310.56",Legal Aid Payment Higher Crime
MINISTRY OF JUSTICE,LEGAL AID AGENCY,03-Jun-15 ,Civil Representation,LEGAL AID FUND,WTB SOLICITORS LLP,140248194,"41,487.81",Legal Aid Payment Civil Representation
MINISTRY OF JUSTICE,LEGAL AID AGENCY,03-Jun-15 ,Civil Representation,LEGAL AID FUND,NAPTHENS ***,140260249,"38,305.71",Legal Aid Payment Civil Representation
MINISTRY OF JUSTICE,LEGAL AID AGENCY,03-Jun-15 ,Higher Crime,LEGAL AID FUND,FORBES SOLICITORS,140291961,"36,631.82",Legal Aid Payment Higher Crime
MINISTRY OF JUSTICE,LEGAL AID AGENCY,17-Jun-15 ,Higher Crime,LEGAL AID FUND,PATTICHI HILL & CROQUES LTD,140396907,"64,774.92",Legal Aid Payment Higher Crime
MINISTRY OF JUSTICE,LEGAL AID AGENCY,03-Jun-15 ,Higher Crime,LEGAL AID FUND,ARLETTE M PIERCY,140268850,"27,925.93",Legal Aid Payment Higher Crime
MINISTRY OF JUSTICE,LEGAL AID AGENCY,03-Jun-15 ,Higher Crime,LEGAL AID FUND,LEE BRADLEY BONNER,140255252,"37,482.12",Legal Aid Payment Higher Crime
MINISTRY OF JUSTICE,LEGAL AID AGENCY,03-Jun-15 ,Civil Representation,LEGAL AID FUND,JACKSON WEST,140186262,"30,243.31",Legal Aid Payment Civil Representation
MINISTRY OF JUSTICE,LEGAL AID AGENCY,03-Jun-15 ,Higher Crime,LEGAL AID FUND,GEOFFREY FORRESTER & CO,140292039,"75,636.54",Legal Aid Payment Higher Crime
MINISTRY OF JUSTICE,LEGAL AID AGENCY,03-Jun-15 ,Higher Crime,LEGAL AID FUND,FIONA A M ELDER,140269633,"28,546.80",Legal Aid Payment Higher Crime
MINISTRY OF JUSTICE,LEGAL AID AGENCY,10-Jun-15 ,Civil Representation,LEGAL AID FUND,LESTER MORRILL INC DAVIES GORE LOMAX,140319953,"27,925.15",Legal Aid Payment Civil Representation
MINISTRY OF JUSTICE,LEGAL AID AGENCY,24-Jun-15 ,Civil Representation,LEGAL AID FUND,ANNIE DIXON,140470722,"25,898.40",Legal Aid Payment Civil Representation
MINISTRY OF JUSTICE,LEGAL AID AGENCY,03-Jun-15 ,Higher Crime,LEGAL AID FUND,SEBASTIAN GARDINER,140269588,"27,925.93",Legal Aid Payment Higher Crime
MINISTRY OF JUSTICE,LEGAL AID AGENCY,24-Jun-15 ,Civil Representation,LEGAL AID FUND,RAMSDENS SOLICITORS LLP,140542906,"69,057.74",Legal Aid Payment Civil Representation
MINISTRY OF JUSTICE,LEGAL AID AGENCY,24-Jun-15 ,Civil Representation,LEGAL AID FUND,PCB SOLICITORS LLP,140446156,"25,383.80",Legal Aid Payment Civil Representation
MINISTRY OF JUSTICE,LEGAL AID AGENCY,24-Jun-15 ,Higher Crime,LEGAL AID FUND,ANDREW S J COLLINGS,140482958,"34,204.15",Legal Aid Payment Higher Crime
MINISTRY OF JUSTICE,LEGAL AID AGENCY,24-Jun-15 ,Higher Crime,LEGAL AID FUND,DAVID PHILLIPS & PARTNERS,140482238,"30,356.36",Legal Aid Payment Higher Crime
MINISTRY OF JUSTICE,LEGAL AID AGENCY,24-Jun-15 ,Higher Crime,LEGAL AID FUND,NIRMAL K SHANT QC,140551906,"68,163.16",Legal Aid Payment Higher Crime
MINISTRY OF JUSTICE,LEGAL AID AGENCY,10-Jun-15 ,Higher Crime,LEGAL AID FUND,QUINN MELVILLE,140324378,"28,386.01",Legal Aid Payment Higher Crime
MINISTRY OF JUSTICE,LEGAL AID AGENCY,24-Jun-15 ,Higher Crime,LEGAL AID FUND,BOYLE LEONARD SOLICITORS LTD,140497947,"35,938.81",Legal Aid Payment Higher Crime
MINISTRY OF JUSTICE,LEGAL AID AGENCY,24-Jun-15 ,Civil Representation,LEGAL AID FUND,WEIR & CO,140426612,"25,944.55",Legal Aid Payment Civil Representation
MINISTRY OF JUSTICE,LEGAL AID AGENCY,24-Jun-15 ,Higher Crime,LEGAL AID FUND,LEON KAZAKOS,140543765,"29,280.00",Legal Aid Payment Higher Crime
MINISTRY OF JUSTICE,LEGAL AID AGENCY,10-Jun-15 ,Higher Crime,LEGAL AID FUND,STEPHEN M A KAMLISH QC,140381700,"44,818.12",Legal Aid Payment Higher Crime
MINISTRY OF JUSTICE,LEGAL AID AGENCY,10-Jun-15 ,Higher Crime,LEGAL AID FUND,HURRAIRAH HARRIS SOLICITORS,140308699,"55,648.69",Legal Aid Payment Higher Crime
MINISTRY OF JUSTICE,LEGAL AID AGENCY,03-Jun-15 ,Higher Crime,LEGAL AID FUND,PATTICHI HILL & CROQUES LTD-ADVOCATE,140238866,"27,337.93",Legal Aid Payment Higher Crime
MINISTRY OF JUSTICE,LEGAL AID AGENCY,10-Jun-15 ,Higher Crime,LEGAL AID FUND,ROBERT FORREST,140353955,"28,716.82",Legal Aid Payment Higher Crime
MINISTRY OF JUSTICE,LEGAL AID AGENCY,03-Jun-15 ,Higher Crime,LEGAL AID FUND,BUXTON RYAN & CO,140292049,"89,660.40",Legal Aid Payment Higher Crime
MINISTRY OF JUSTICE,LEGAL AID AGENCY,17-Jun-15 ,Legal Help,LEGAL AID FUND,TY ARIAN LTD,140477331,"42,433.90",Legal Aid Payment Legal Help
MINISTRY OF JUSTICE,LEGAL AID AGENCY,03-Jun-15 ,Higher Crime,LEGAL AID FUND,SAKHI LEGAL SERVICES LTD,140292404,"32,713.08",Legal Aid Payment Higher Crime
MINISTRY OF JUSTICE,LEGAL AID AGENCY,03-Jun-15 ,Higher Crime,LEGAL AID FUND,COBLEYS LLP,140283010,"26,933.28",Legal Aid Payment Higher Crime
MINISTRY OF JUSTICE,LEGAL AID AGENCY,17-Jun-15 ,Civil Representation,LEGAL AID FUND,THOMAS DUNTON SOLICITORS,140418170,"25,372.76",Legal Aid Payment Civil Representation
MINISTRY OF JUSTICE,LEGAL AID AGENCY,17-Jun-15 ,Higher Crime,LEGAL AID FUND,SIMON LACEY LAW ASSOCIATES,140397533,"40,441.62",Legal Aid Payment Higher Crime
MINISTRY OF JUSTICE,LEGAL AID AGENCY,17-Jun-15 ,Civil Representation,LEGAL AID FUND,TAYLOR HALDANE BARLEX LLP,139992070,"26,593.21",Legal Aid Payment Civil Representation
MINISTRY OF JUSTICE,LEGAL AID AGENCY,17-Jun-15 ,Higher Crime,LEGAL AID FUND,SHAFI SOLICITORS LLP,140467317,"50,670.20",Legal Aid Payment Higher Crime
MINISTRY OF JUSTICE,LEGAL AID AGENCY,24-Jun-15 ,Higher Crime,LEGAL AID FUND,WELLS BURCOMBE LLP,140551309,"36,028.79",Legal Aid Payment Higher Crime
MINISTRY OF JUSTICE,LEGAL AID AGENCY,03-Jun-15 ,Higher Crime,LEGAL AID FUND,PAUL M MENDELLE QC,140269570,"55,391.32",Legal Aid Payment Higher Crime
MINISTRY OF JUSTICE,LEGAL AID AGENCY,03-Jun-15 ,Higher Crime,LEGAL AID FUND,BIVONAS LLP,140292232,"74,592.87",Legal Aid Payment Higher Crime
MINISTRY OF JUSTICE,LEGAL AID AGENCY,24-Jun-15 ,Civil Representation,LEGAL AID FUND,FLG LTD,140476469,"33,382.80",Legal Aid Payment Civil Representation
MINISTRY OF JUSTICE,LEGAL AID AGENCY,03-Jun-15 ,Higher Crime,LEGAL AID FUND,MCLARTYS SOLICITORS,140292811,"78,406.47",Legal Aid Payment Higher Crime
MINISTRY OF JUSTICE,LEGAL AID AGENCY,24-Jun-15 ,Higher Crime,LEGAL AID FUND,TUCKERS SOLICITORS LLP,140498470,"62,339.53",Legal Aid Payment Higher Crime
MINISTRY OF JUSTICE,LEGAL AID AGENCY,17-Jun-15 ,Higher Crime,LEGAL AID FUND,CARTWRIGHT KING SOLICITORS,140467241,"32,160.14",Legal Aid Payment Higher Crime
MINISTRY OF JUSTICE,LEGAL AID AGENCY,03-Jun-15 ,Civil Representation,LEGAL AID FUND,ALSTERS KELLEY LLP,140213417,"26,955.60",Legal Aid Payment Civil Representation
MINISTRY OF JUSTICE,LEGAL AID AGENCY,17-Jun-15 ,Legal Help,LEGAL AID FUND,SIMPSON MILLAR LLP,140477265,"78,443.31",Legal Aid Payment Legal Help
MINISTRY OF JUSTICE,LEGAL AID AGENCY,17-Jun-15 ,Civil Representation,LEGAL AID FUND,FORBES SOLICITORS,140438876,"32,779.80",Legal Aid Payment Civil Representation
MINISTRY OF JUSTICE,LEGAL AID AGENCY,03-Jun-15 ,Civil Representation,LEGAL AID FUND,LEWIS DONNELLY,140211941,"32,788.80",Legal Aid Payment Civil Representation
MINISTRY OF JUSTICE,LEGAL AID AGENCY,10-Jun-15 ,Higher Crime,LEGAL AID FUND,MICHAEL L WHITTY,140308321,"28,722.50",Legal Aid Payment Higher Crime
MINISTRY OF JUSTICE,LEGAL AID AGENCY,24-Jun-15 ,Higher Crime,LEGAL AID FUND,FORRESTERS SOLICITORS LIMITED,140551618,"41,020.16",Legal Aid Payment Higher Crime
MINISTRY OF JUSTICE,LEGAL AID AGENCY,03-Jun-15 ,Legal Help,LEGAL AID FUND,JOHN NEVILLE SINGH SOLICITOR,140237880,"45,547.28",Legal Aid Payment Legal Help
MINISTRY OF JUSTICE,LEGAL AID AGENCY,24-Jun-15 ,Civil Representation,LEGAL AID FUND,JEREMY P WESTON,140446223,"57,250.80",Legal Aid Payment Civil Representation
MINISTRY OF JUSTICE,LEGAL AID AGENCY,10/06/2015,LEGAL AID FUND,LEGAL AID FUND,FLETCHERS,135574454,"-60,000.00",Legal Aid Payments
MINISTRY OF JUSTICE,LEGAL AID AGENCY,17/06/2015,LEGAL AID FUND,LEGAL AID FUND,FREETHS LLP,137910820,"-31,658.91",Legal Aid Payments
MINISTRY OF JUSTICE,LEGAL AID AGENCY,25/06/2015,LEGAL AID FUND,LEGAL AID FUND,SALLY F BRADLEY QC,138721072,"-39,501.00",Legal Aid Payments
MINISTRY OF JUSTICE,LEGAL AID AGENCY,17/06/2015,LEGAL AID FUND,LEGAL AID FUND,H JONATHAN FURNESS QC,140153071,"-58,520.64",Legal Aid Payments
MINISTRY OF JUSTICE,LEGAL AID AGENCY,03/06/2015,LEGAL AID FUND,LEGAL AID FUND,LEWIS DONNELLY,140230405,"-32,788.80",Legal Aid Payments
MINISTRY OF JUSTICE,LEGAL AID AGENCY,17/06/2015,LEGAL AID FUND,LEGAL AID FUND,REDFEARNS SOLICITORS LLP,140401778,"-37,937.02",Legal Aid Payments
MINISTRY OF JUSTICE,LEGAL AID AGENCY,17/06/2015,LEGAL AID FUND,LEGAL AID FUND,CHADWICK LAWRENCE LLP,140417514,"-54,000.00",Legal Aid Payments
MINISTRY OF JUSTICE,LEGAL AID AGENCY,17/06/2015,LEGAL AID FUND,LEGAL AID FUND,ISON HARRISON LTD,140470572,"-27,854.86",Legal Aid Payments
MINISTRY OF JUSTICE,LEGAL AID AGENCY,24/06/2015,LEGAL AID FUND,LEGAL AID FUND,GOODMAN RAY,140555473,"-36,319.36",Legal Aid Payments
MINISTRY OF JUSTICE,LEGAL AID AGENCY,24/06/2015,LEGAL AID FUND,LEGAL AID FUND,HOWELLS LLP,140560060,"-25,969.08",Legal Aid Payments
MINISTRY OF JUSTICE,LEGAL AID AGENCY,24/06/2015,LEGAL AID FUND,LEGAL AID FUND,DAWSON CORNWELL,140559450,"-43,217.99",Legal Aid Payments
MINISTRY OF JUSTICE,LEGAL AID AGENCY,17/06/2015,LEGAL AID FUND,LEGAL AID FUND,RAMSDENS SOLICITORS LLP,140402387,"-58,336.92",Legal Aid Payments
MINISTRY OF JUSTICE,LEGAL AID AGENCY,03/06/2015,LEGAL AID FUND,LEGAL AID FUND,HOWARD BERNSTEIN SOLICITORS,140255817,"-31,728.96",Legal Aid Payments
MINISTRY OF JUSTICE,LEGAL AID AGENCY,03/06/2015,LEGAL AID FUND,LEGAL AID FUND,DODDS SOLICITORS LLP,140228736,"-31,552.10",Legal Aid Payments
MINISTRY OF JUSTICE,LEGAL AID AGENCY,17/06/2015,LEGAL AID FUND,LEGAL AID FUND,SWITALSKI'S LTD,140471591,"-67,036.61",Legal Aid Payments
MINISTRY OF JUSTICE,LEGAL AID AGENCY,03/06/2015,LEGAL AID FUND,LEGAL AID FUND,WATKINS & GUNN,140302085,"-38,543.01",Legal Aid Payments
MINISTRY OF JUSTICE,LEGAL AID AGENCY,03/06/2015,LEGAL AID FUND,LEGAL AID FUND,RAYAT & CO,140284719,"-26,360.94",Legal Aid Payments
MINISTRY OF JUSTICE,LEGAL AID AGENCY,10/06/2015,LEGAL AID FUND,LEGAL AID FUND,RACHEL S SLEEMAN,140388397,"-26,257.26",Legal Aid Payments
MINISTRY OF JUSTICE,LEGAL AID AGENCY,03/06/2015,LEGAL AID FUND,LEGAL AID FUND,LUCY E LEADER,140281634,"-29,937.60",Legal Aid Payments
MINISTRY OF JUSTICE,LEGAL AID AGENCY,03/06/2015,LEGAL AID FUND,LEGAL AID FUND,AVERY NAYLOR LTD,140281640,"-36,043.04",Legal Aid Payments
MINISTRY OF JUSTICE,LEGAL AID AGENCY,03/06/2015,LEGAL AID FUND,LEGAL AID FUND,SWITALSKI'S LTD,140228026,"-35,039.48",Legal Aid Payments
MINISTRY OF JUSTICE,LEGAL AID AGENCY,25/06/2015,LEGAL AID FUND,LEGAL AID FUND,SALLY F BRADLEY QC,137371304,"-35,064.90",Legal Aid Payments
MINISTRY OF JUSTICE,LEGAL AID AGENCY,10/06/2015,LEGAL AID FUND,LEGAL AID FUND,BERRY & LAMBERTS SOLICITORS,140311568,"-27,677.77",Legal Aid Payments
MINISTRY OF JUSTICE,LEGAL AID AGENCY,17/06/2015,LEGAL AID FUND,LEGAL AID FUND,CLARE L GARNHAM,140417519,"-35,796.00",Legal Aid Payments
MINISTRY OF JUSTICE,LEGAL AID AGENCY,15/06/2015,LEGAL AID FUND,LEGAL AID FUND,ELIZABETH ADDICOTT,136858718,"-56,430.00",Legal Aid Payments
MINISTRY OF JUSTICE,LEGAL AID AGENCY,24/06/2015,LEGAL AID FUND,LEGAL AID FUND,RHYS M JONES,140558314,"-30,240.00",Legal Aid Payments
MINISTRY OF JUSTICE,LEGAL AID AGENCY,25/06/2015,LEGAL AID FUND,LEGAL AID FUND,SALLY F BRADLEY QC,138721272,"-40,653.00",Legal Aid Payments
MINISTRY OF JUSTICE,LEGAL AID AGENCY,03/06/2015,LEGAL AID FUND,LEGAL AID FUND,LESLEY S MCKENZIE,139246351,"-35,640.00",Legal Aid Payments
MINISTRY OF JUSTICE,LEGAL AID AGENCY,17/06/2015,LEGAL AID FUND,LEGAL AID FUND,GAYNHAM KING & MELLOR,140406753,"-37,932.46",Legal Aid Payments
MINISTRY OF JUSTICE,LEGAL AID AGENCY,03/06/2015,LEGAL AID FUND,LEGAL AID FUND,M JAYNE PYE,140230406,"-56,475.71",Legal Aid Payments
MINISTRY OF JUSTICE,LEGAL AID AGENCY,17/06/2015,LEGAL AID FUND,LEGAL AID FUND,HARDINGTON HOGG,140460081,"-36,346.40",Legal Aid Payments
MINISTRY OF JUSTICE,LEGAL AID AGENCY,24/06/2015,LEGAL AID FUND,LEGAL AID FUND,WELLS BURCOMBE LLP,140551257,"-78,818.95",Legal Aid Payments
MINISTRY OF JUSTICE,LEGAL AID AGENCY,17/06/2015,LEGAL AID FUND,LEGAL AID FUND,MCCORMACKS LAW,140401835,"-60,862.33",Legal Aid Payments
MINISTRY OF JUSTICE,LEGAL AID AGENCY,17/06/2015,LEGAL AID FUND,LEGAL AID FUND,LUCY E SOWDEN,140472834,"-31,363.20",Legal Aid Payments
MINISTRY OF JUSTICE,LEGAL AID AGENCY,24/06/2015,LEGAL AID FUND,LEGAL AID FUND,CHILD LAW PARTNERSHIP LTD,140555837,"-29,555.01",Legal Aid Payments
MINISTRY OF JUSTICE,LEGAL AID AGENCY,17/06/2015,LEGAL AID FUND,LEGAL AID FUND,LINDER MYERS LLP,140438198,"-30,469.67",Legal Aid Payments
MINISTRY OF JUSTICE,LEGAL AID AGENCY,03/06/2015,LEGAL AID FUND,LEGAL AID FUND,SALLY F BRADLEY QC,137333738,"-35,575.20",Legal Aid Payments
MINISTRY OF JUSTICE,LEGAL AID AGENCY,03/06/2015,LEGAL AID FUND,LEGAL AID FUND,SALLY F BRADLEY QC,138721271,"-37,836.00",Legal Aid Payments
MINISTRY OF JUSTICE,LEGAL AID AGENCY,17/06/2015,LEGAL AID FUND,LEGAL AID FUND,LAWRENCE & CO,140472138,"-38,911.33",Legal Aid Payments
MINISTRY OF JUSTICE,LEGAL AID AGENCY,03/06/2015,LEGAL AID FUND,LEGAL AID FUND,PAUL M STOREY QC,139977338,"-60,699.12",Legal Aid Payments
MINISTRY OF JUSTICE,LEGAL AID AGENCY,10/06/2015,LEGAL AID FUND,LEGAL AID FUND,A & N CARE SOLICITORS,140313797,"-29,466.44",Legal Aid Payments
MINISTRY OF JUSTICE,LEGAL AID AGENCY,17/06/2015,LEGAL AID FUND,LEGAL AID FUND,THOMAS A MCGIVERN,140438476,"-42,465.60",Legal Aid Payments
MINISTRY OF JUSTICE,LEGAL AID AGENCY,24/06/2015,LEGAL AID FUND,LEGAL AID FUND,JEREMY P WESTON,140543727,"-57,250.80",Legal Aid Payments
MINISTRY OF JUSTICE,LEGAL AID AGENCY,10/06/2015,LEGAL AID FUND,LEGAL AID FUND,REES PAGE,140344231,"-27,926.26",Legal Aid Payments
MINISTRY OF JUSTICE,LEGAL AID AGENCY,24/06/2015,LEGAL AID FUND,LEGAL AID FUND,RAMSDENS SOLICITORS LLP,140542907,"-69,001.75",Legal Aid Payments
MINISTRY OF JUSTICE,LEGAL AID AGENCY,03/06/2015,LEGAL AID FUND,LEGAL AID FUND,RAYAT & CO,139973337,"-28,710.94",Legal Aid Payments
MINISTRY OF JUSTICE,LEGAL AID AGENCY,03/06/2015,LEGAL AID FUND,LEGAL AID FUND,MURRIA SOLICITORS LTD,139617742,"-32,234.54",Legal Aid Payments
MINISTRY OF JUSTICE,LEGAL AID AGENCY,03/06/2015,LEGAL AID FUND,LEGAL AID FUND,ANDREWS MCQUEEN SOLICITORS,140280016,"-39,852.00",Legal Aid Payments
MINISTRY OF JUSTICE,LEGAL AID AGENCY,17/06/2015,LEGAL AID FUND,LEGAL AID FUND,H JONATHAN FURNESS QC,140438470,"-56,635.20",Legal Aid Payments
MINISTRY OF JUSTICE,LEGAL AID AGENCY,17/06/2015,LEGAL AID FUND,LEGAL AID FUND,IAN WISE QC,140417573,"-27,526.50",Legal Aid Payments
MINISTRY OF JUSTICE,LEGAL AID AGENCY,10/06/2015,LEGAL AID FUND,LEGAL AID FUND,ESKINAZI & CO,140344537,"-27,485.03",Legal Aid Payments
MINISTRY OF JUSTICE,LEGAL AID AGENCY,24/06/2015,LEGAL AID FUND,LEGAL AID FUND,HOGANS,140557420,"-41,936.15",Legal Aid Payments
MINISTRY OF JUSTICE,LEGAL AID AGENCY,03/06/2015,LEGAL AID FUND,LEGAL AID FUND,M JAYNE PYE,138142260,"-49,120.68",Legal Aid Payments
MINISTRY OF JUSTICE,LEGAL AID AGENCY,03/06/2015,LEGAL AID FUND,LEGAL AID FUND,HOGANS,140301361,"-41,804.15",Legal Aid Payments
MINISTRY OF JUSTICE,LEGAL AID AGENCY,10/06/2015,LEGAL AID FUND,LEGAL AID FUND,BEST SOLICITORS,140316642,"-42,074.54",Legal Aid Payments
MINISTRY OF JUSTICE,LEGAL AID AGENCY,24/06/2015,LEGAL AID FUND,LEGAL AID FUND,ATKINS HOPE SOLICITORS LIMITED,140471601,"-25,275.00",Legal Aid Payments
MINISTRY OF JUSTICE,LEGAL AID AGENCY,17/06/2015,LEGAL AID FUND,LEGAL AID FUND,LESTER MORRILL INC DAVIES GORE LOMAX,140472839,"-25,239.60",Legal Aid Payments
MINISTRY OF JUSTICE,LEGAL AID AGENCY,10/06/2015,LEGAL AID FUND,LEGAL AID FUND,GAYNHAM KING & MELLOR,140389718,"-37,870.04",Legal Aid Payments
MINISTRY OF JUSTICE,LEGAL AID AGENCY,24/06/2015,LEGAL AID FUND,LEGAL AID FUND,HAYGARTH JONES,140543523,"-45,384.05",Legal Aid Payments
MINISTRY OF JUSTICE,LEGAL AID AGENCY,03/06/2015,LEGAL AID FUND,LEGAL AID FUND,ELIZABETH ISAACS,140186760,"-41,666.40",Legal Aid Payments
MINISTRY OF JUSTICE,LEGAL AID AGENCY,24/06/2015,LEGAL AID FUND,LEGAL AID FUND,ANDREW S J COLLINGS,140482975,"-34,204.15",Legal Aid Payments
MINISTRY OF JUSTICE,LEGAL AID AGENCY,17/06/2015,LEGAL AID FUND,LEGAL AID FUND,HMA SOLICITORS,140424846,"-30,168.59",Legal Aid Payments
MINISTRY OF JUSTICE,LEGAL AID AGENCY,10/06/2015,LEGAL AID FUND,LEGAL AID FUND,CAROLYN N JONES,140229433,"-29,125.49",Legal Aid Payments
MINISTRY OF JUSTICE,LEGAL AID AGENCY,24/06/2015,LEGAL AID FUND,LEGAL AID FUND,MARTIN MURRAY & ASSOCIATES,140556169,"-35,017.80",Legal Aid Payments
MINISTRY OF JUSTICE,LEGAL AID AGENCY,10/06/2015,LEGAL AID FUND,LEGAL AID FUND,THE CENTRAL LAW PRACTICE,140308209,"-39,985.16",Legal Aid Payments
Ministry of Justice,LEGAL AID AGENCY,23-Jun-15 ,610400-Debtors <1 year - Prepayments & Accrued Income,VA396-Property Costs,LEEDS CITY COUNCIL,2000993,"14,050.50",Rates Invoice
Ministry of Justice,LEGAL AID AGENCY,23-Jun-15 ,610400-Debtors <1 year - Prepayments & Accrued Income,VA396-Property Costs,CAMBRIDGE CITY COUNCIL,2000989,"4,979.30",Rates Invoice
Ministry of Justice,LEGAL AID AGENCY,23-Jun-15 ,610400-Debtors <1 year - Prepayments & Accrued Income,VA396-Property Costs,CAMBRIDGE CITY COUNCIL,2000989,"3,993.30",Rates Invoice
Ministry of Justice,LEGAL AID AGENCY,23-Jun-15 ,610400-Debtors <1 year - Prepayments & Accrued Income,VA396-Property Costs,SOUTH TYNESIDE COUNCIL,2000996,"11,979.90",Rates Invoice
Ministry of Justice,LEGAL AID AGENCY,23-Jun-15 ,610400-Debtors <1 year - Prepayments & Accrued Income,VA396-Property Costs,BRIGHTON & HOVE CITY COUNCIL,2000987,"13,927.25",Rates Invoice
Ministry of Justice,LEGAL AID AGENCY,23-Jun-15 ,610400-Debtors <1 year - Prepayments & Accrued Income,VA396-Property Costs,NOTTINGHAM CITY COUNCIL,2000994,"5,965.30",Rates Invoice
Ministry of Justice,LEGAL AID AGENCY,23-Jun-15 ,610400-Debtors <1 year - Prepayments & Accrued Income,VA396-Property Costs,BIRMINGHAM CITY COUNCIL,2000986,"8,726.10",Rates Invoice
Ministry of Justice,LEGAL AID AGENCY,23-Jun-15 ,610400-Debtors <1 year - Prepayments & Accrued Income,VA396-Property Costs,BRISTOL CITY COUNCIL,2000988,"13,064.50",Rates Invoice
